Workbook

Sheet Mes listes
A1: Etat | C1: Offre | E1: Origine
A2: Autres | C2: AGEFIPH | E2: Facebook
A3: Closé | C3: AGEFIPH | E3: Insta
A4: Done | C4: CASH divisé X3 | E4: LinkedIn
A5: Downsell | C5: CASH divisé X6 | E5: Recommandation
A6: No offers | C6: CASH X1 | E6: Site internet
A7: No show | C7: CPF | E7: Webi
A8: Paiement en attente | C8: CPF + CASH | E8: YT
A9: Planifié | C9: OPCO
A10: R2- Followup
A11: Rdv annulé
A12: Rdv replanifié
A13: Refus

Sheet Oct 23
F1: Gross Totals
B2: Cold Traffic | D2: Paiement CPF: | E2: =SUMIF(I15:I102,"CPF",H15:H96) -> 2500 | F2: CA global : | G2: =SUM(G15:G247) -> 2500
B3: Rdv bookés | C3: =COUNTIF(E15:E102, "Yes")+COUNTIF(E15:E102, "No") -> 0 | D3: Paiement CPF + Cash | E3: =SUMIF(I15:I102,"CPF",H15:H96) -> 2500 | F3: Encaissé global : | G3: =SUM(H15:H247) -> 2500 | K3: Hommes | L3: =COUNTIFS(Q18:Q102, "homme") -> 0
B4: Rdv réalisés | C4: =COUNTIF(E15:E102, "Yes") -> 0 | D4: Paiement 1X cash: | E4: =SUMIF(I15:I102,"CASH 1 fois",G15:G102) -> 0 | F4: CA CPF | G4: =SUM(K15:K102) -> 0 | K4: Femme | L4: =COUNTIFS(Q18:Q102, "femme") -> 0
B5: Rdv replannifiés | C5: =COUNTIF(E15:E102, "Replannifié") -> 0 | D5: Paiement divisé Cash | E5: =SUMIF(I15:I102,"CASH divisé") -> 0 | F5: CA Cash | G5: =SUM(L15:L102) -> 0 | H5: Femmes closées | I5: =COUNTIFS(F15:F102,"closé",Q15:Q102, "femme") -> 0 | K5: % Conversion de Femmes closées /Femmes appelées | N5: =I5/L4 -> 
B6: Rdv annulés | C6: =COUNTIFS(F15:F102,"rdv annulé") -> 0 | D6: Opco | E6: =SUMIF(I15:I102,"OPCO") -> 0 | F6: Encaissé Cash | G6: =SUM(M15:M128) -> 0 | H6: Hommes closés | I6: =COUNTIFS(F15:F102,"closé",Q15:Q102, "homme") -> 0 | K6: % Conversion d' Hommes closés / Hommes appelés | N6: =I6/L3 -> 
B7: R2 rdv | C7: =COUNTIFS(O15:O102, "Yes")+COUNTIFS(O15:O102, "No") -> 0 | D7: Follow-up | E7: =COUNTIF(F15:F102, "Follow-up") -> 0 | F7: Réservations : | G7: =C3 -> 0 | H7: Salariés closés | I7: =COUNTIFS(F15:F102,"closé",R15:R102, "Salarié(e)") -> 0 | K7: % Conversion de salariés | N7: =I7/G10 -> 0
B8: R2 Réalisés | C8: =COUNTIF(O15:O102, "Yes") -> 0 | D8: Echec | E8: =SUMIF(F15:F102, "echec") -> 0 | F8: Appels : | G8: 0 | H8: Sans-emploi closés | I8: =COUNTIFS(F15:F102,"closé",R15:R102,"Sans emploi") -> 0 | K8: % Conversion sans-emploi | N8: =I8/G10 -> 0
B9: No-Shows R1: | C9: =COUNTIFS(E15:E102, "No") -> 0 | D9: Non qualifiés | E9: =SUMIF(F15:F102, "Non qualifié") -> 0 | F9: Follow-up | G9: =E7 -> 0 | H9: Moyenne d'âge | I9: =AVERAGE(P15:P102) -> 
B10: Taux de présence R1: | C10: =C4/C3 ->  | D10: Taux de conversion : | E10: =G10/G8 ->  | F10: Closings : | G10: =COUNTIFS(F15:F118, "Closé") -> 1
B11: Taux de présence R2: | C11: =C8/C7 ->  | D11: Total CA closé : | E11: =E2+E3+E4+E5+E6 -> 5000
D12: Moyenne montant CPF | E12: =AVERAGE(K15:K83) -> 
A14: Date | B14: NOM prénom | C14: E-Mail | D14: Téléphone | E14: Présent | F14: Etat | G14: CA | H14: Encaissé | I14: Offre | J14: CPF Dispo | K14: Montant en CPF | L14: Montant en Cash | M14: Montant encaissé en cash | N14: Origine | O14: Présent R2 | P14: Age | Q14: Sexe | R14: Statut | S14: Fonction | T14: Remarque | U14: Raison Refus
F15: Closé | G15: 2500 | H15: =IF(F15="Closé",IF(I15="CASH divisé X3",750,IF(I15="CASH divisé X6",416.16,IF(OR(I15={"CPF + CASH";"CPF";"CASH X1";"OPCO";"AGEFIPH"}),G15,""))),"") -> 2500 | I15: CPF

Sheet Nov 23
F1: Gross Totals
B2: Cold Traffic | D2: Paiement CPF: | E2: =SUMIF(J18:J105,"CPF",H18:H99) -> 20000 | F2: CA global : | G2: =SUM(G18:G250) -> 48500
B3: Rdv bookés | C3: =COUNTIF(E18:E105, "Yes")+COUNTIF(E18:E105, "No") -> 72 | D3: Paiement CPF + Cash | E3: =SUMIF(J18:J105,"CPF",H18:H99) -> 20000 | F3: Encaissé global : | G3: =SUM(H18:H250) -> 32748.48 | L3: Hommes | M3: =COUNTIFS(R21:R105, "homme") -> 1
B4: Rdv réalisés | C4: =COUNTIF(E18:E105, "Yes") -> 59 | D4: Paiement 1X cash: | E4: =SUMIF(J18:J105,"CASH 1 fois",G18:G105) -> 0 | F4: CA CPF | G4: =SUM(L18:L105) -> 9460 | L4: Femme | M4: =COUNTIFS(R21:R105, "femme") -> 16
B5: Rdv replannifiés | C5: =COUNTIF(E18:E105, "Replannifié") -> 0 | D5: Paiement divisé Cash | E5: =SUMIF(J18:J105,"CASH divisé") -> 0 | F5: CA Cash | G5: =SUM(M18:M105) -> 13040 | H5: Femmes closées | J5: =COUNTIFS(F18:F105,"closé",R18:R105, "femme") -> 17 | L5: % Conversion de Femmes closées /Femmes appelées | O5: =J5/M4 -> 1.0625
B6: Rdv annulés | C6: =COUNTIFS(F18:F105,"rdv annulé") -> 4 | D6: Opco | E6: =SUMIF(J18:J105,"OPCO") -> 0 | F6: Encaissé Cash | G6: =SUM(N18:N131) -> 22500 | H6: Hommes closés | J6: =COUNTIFS(F18:F105,"closé",R18:R105, "homme") -> 1 | L6: % Conversion d' Hommes closés / Hommes appelés | O6: =J6/M3 -> 1
B7: R2 rdv | C7: =COUNTIFS(P18:P105, "Yes")+COUNTIFS(P18:P105, "No") -> 34 | D7: Follow-up | E7: =COUNTIF(F18:F105, "Follow-up") -> 0 | F7: Réservations : | G7: =C3 -> 72 | H7: Salariés closés | J7: =COUNTIFS(F18:F105,"closé",S18:S105, "Salarié(e)") -> 0 | L7: % Conversion de salariés | O7: =J7/G10 -> 0
B8: R2 Réalisés | C8: =COUNTIF(P18:P105, "Yes") -> 16 | D8: Echec | E8: =SUMIF(F18:F105, "echec") -> 0 | F8: Appels : | G8: 59 | H8: Sans-emploi closés | J8: =COUNTIFS(F18:F105,"closé",S18:S105,"Sans emploi") -> 0 | L8: % Conversion sans-emploi | O8: =J8/G10 -> 0
B9: No-Shows R1: | C9: =COUNTIFS(E18:E105, "No") -> 13 | D9: Non qualifiés | E9: =SUMIF(F18:F105, "Non qualifié") -> 0 | F9: Follow-up | G9: =E7 -> 0 | H9: Moyenne d'âge | J9: =AVERAGE(Q18:Q105) -> 
B10: Taux de présence R1: | C10: =C4/C3 -> 0.8194444444 | D10: Taux de conversion : | E10: =G10/G8 -> 0.3220338983 | F10: Closings : | G10: =COUNTIFS(F18:F121, "Closé") -> 19
B11: Taux de présence R2: | C11: =C8/C7 -> 0.4705882353 | D11: Total CA closé : | E11: =E2+E3+E4+E5+E6 -> 40000
D12: Moyenne montant CPF | E12: =AVERAGE(L18:L86) -> 525.5555556
A13: 2023-11-01
A14: 11 | B14: NOM prénom | C14: E-Mail | D14: Téléphone | E14: Présent | F14: Etat | G14: CA | H14: Encaissé | I14: X | J14: Offre | K14: CPF Dispo | L14: Montant en CPF | M14: Montant en Cash | N14: Montant encaissé en cash | O14: Origine | P14: Présent R2 | Q14: Age | R14: Sexe | S14: Statut | T14: Fonction | U14: Remarques | V14: Raison Refus | W14: Offre copies 3/6
A15: Début liste des reports d'acompte
A17: Début liste des écritures courantes du mois
A18: Deanerys | B18: xx1 | C18: y@gmail.com | D18: 62511455 | E18: Yes | F18: Autres | G18: 2500 | H18: =IF(F18="Closé",IF(J18="CASH divisé X3",750,IF(J18="CASH divisé X6",416.16,IF(J18="CASH X1",2000,IF(OR(J18="CPF",J18= "CPF + CASH",J18= "OPCO",J18= "AGEFIPH"),G18,"")))),"") ->  | I18: 6 | J18: CPF | K18: 2500 | L18: =IF(F18="Closé",K18,"") ->  | M18: =IF(AND(F18="CLosé",OR(J18="CPF",J18="CPF + CASH",J18="OPCO",J18="AGEFIPH")),G18-K18,"") ->  | N18: =IF(AND(F18="CLosé",OR(J18="CPF",J18="CPF + CASH",J18="OPCO",J18="AGEFIPH")),G18,"") ->  | O18: Insta | P18: Yes | R18: Femme | U18: hhhhhhhhhhhhh | W18: Non
A19: 30 janv. 2024 à 20:27 | B19: xx2 | C19: y@gmail.com | D19: 62511455 | E19: Yes | F19: Closé | G19: 2500 | H19: 2500 | J19: CPF | K19: 2500 | L19: 2500 | M19: 0 | N19: 2500 | O19: Webi | R19: Femme | U19: hhhhhhhhhhhhhhh | W19: Non
A20: Dsl pour l'attente je peaufinais le fichier, j'ai fait une copie j'ai mis toutes les formules que je souhaitais et les mises en formes uniquement sur l'onglet Nov 23 je copierai plus tard sur les autres onglets. Du coup est-il possible par exemple si sur l'onglet Nov 23 la ligne 22 (c'est la première qui a un paiement en plusieurs fois) la cellule J22 est noté "CASH 6X" et I22 est noté "1" reporter la ligne entière avec les mêmes mises en forme et formules 5 fois sur les 5 prochains onglets soit une fois en Dec 23, une fois en Janv 24, Fev 24, Mars 24, Avril 24 en revanche il faut que la cellule I22 se modifie à chaque fois Si en Nov 23 c'est noté 1 mettre dans l'onglet Dec 23 en I15 mettre 2 (Je précise, il faut que la ligne se recopie au début à chaque fois, c'est à dire qu'on doit voir apparaître les paiements en plusieurs fois en premier dans le tableau donc si j'écris dans une ligne et qu'au dernier moment dans l'onglet précédent je mets à jour un paiement que j'aurais oublié, ajouter une ligne au dessus de la ligne pour que les paiements en plusieurs fois soient regroupés ensemble) en Janv 24 en I15 mettre 3 ainsi de suite. Idem pour les paiements en trois fois, il faut que ça soit reporté 2 fois, se sont lignes marqués "CASH X3" en cellule I donc par exemple si le premier paiement est en décembre, le deuxième sera janvier et le dernier en février. | B20: xx3 | C20: y@gmail.com | D20: 62511455 | E20: Yes | F20: R2- Followup | J20: CPF + CASH | K20: 1340 | O20: Webi | P20: No | U20: hhhhhhhhhhh | W20: Non
A21: Voilà je ne sais pas si j'ai bien expliqué et si ce n'est pas trop dur à mettre en place. J'ajoute que ce fichier est un fichier partagé avec mes collègues et que ceci n'est qu'une copie, du coup si vous arrivez à m'aider comment dois-je recopier la macro je ne sais pas où c'est je n'ai jamais fait. | B21: xx4 | C21: y@gmail.com | D21: 62511455 | E21: Yes | F21: Closé | G21: 2500 | H21: 2500 | J21: CPF + CASH | K21: 1400 | L21: 1400 | M21: 1100 | N21: 2500 | O21: Webi | P21: Yes | R21: Femme | W21: Non
A22: Je vous remercie infiniment :) | B22: xx5 | C22: y@gmail.com | D22: 62511455 | E22: Yes | F22: R2- Followup | J22: CPF | O22: Webi | P22: Yes | W22: Non
A23: Voici le lien | B23: xx6 | C23: y@gmail.com | D23: 62511455 | E23: Yes | F23: Autres | J23: CPF | O23: Facebook | W23: Non
A24: https://www.cjoint.com/c/NAEtuf2NmJM | B24: xx7 | C24: y@gmail.com | D24: 62511455 | E24: Yes | F24: R2- Followup | J24: CPF + CASH | K24: 1300 | O24: Webi | P24: Yes | W24: Non
A25: test JPP | B25: xx8 | C25: y@gmail.com | D25: 62511455 | E25: Yes | F25: Closé | G25: 2500 | H25: 416.16 | I25: 1 | J25: CASH divisé X6 | L25: 0 | O25: Webi | P25: Yes | R25: Femme | W25: Oui
A26: test JPP | B26: xx9 | C26: y@gmail.com | D26: 62511455 | E26: Yes | F26: Closé | G26: 2500 | H26: 416.16 | I26: 1 | J26: CASH divisé X6 | L26: 0 | O26: Webi | R26: Femme | W26: Non
A27: test JPP | B27: xx10 | C27: y@gmail.com | D27: 62511455 | E27: Yes | F27: R2- Followup | I27: 1 | J27: CASH divisé X6 | O27: Webi | W27: Non
A28: 2023-11-04 | B28: xx11 | C28: y@gmail.com | D28: 62511455 | E28: Yes | F28: R2- Followup | J28: CPF | O28: Webi | W28: Non
A29: 2023-11-04 | B29: xx12 | C29: y@gmail.com | D29: 62511455 | E29: No | J29: CPF | W29: Non
A30: 2023-11-06 | B30: xx13 | D30: 62511455 | E30: Yes | F30: R2- Followup | J30: CPF | K30: 750 | O30: Webi | P30: Yes | W30: Non
A31: test JPP | B31: xx14 | D31: 62511455 | E31: Yes | F31: Closé | G31: 2500 | H31: 750 | I31: 1 | J31: CASH divisé X3 | L31: 0 | O31: Webi | R31: Femme | W31: Oui
A32: 2023-11-06 | B32: xx15 | E32: Yes | F32: R2- Followup | J32: CPF | O32: Webi | P32: No | W32: Non
A33: 2023-11-06 | B33: xx16 | E33: No | W33: Non
A34: 2023-11-06 | B34: xx17 | E34: Yes | F34: No offers | K34: 300 | W34: Non
A35: 2023-11-06 | B35: xx18 | E35: Yes | F35: Autres | J35: CPF + CASH | O35: Webi | W35: Non
A36: 2023-11-06 | B36: xx19 | E36: Yes | F36: R2- Followup | K36: 500 | O36: Webi | P36: Yes | W36: Non
A37: test JPP | B37: xx20 | E37: Yes | F37: Closé | G37: 2500 | H37: 750 | I37: 1 | J37: CASH divisé X3 | L37: 0 | O37: Webi | P37: Yes | R37: Femme | W37: Non
A38: 2023-11-07 | B38: xx21 | E38: Yes | F38: R2- Followup | J38: CPF | O38: Webi | W38: Non
A39: test JPP | B39: xx22 | E39: Yes | F39: Closé | G39: 2500 | H39: 416.16 | I39: 1 | J39: CASH divisé X6 | L39: 0 | O39: Webi | R39: Femme | W39: Non
A40: test JPP | B40: xx23 | E40: Yes | F40: R2- Followup | I40: 1 | J40: CASH divisé X6 | O40: Insta | W40: Non
A41: 2023-11-08 | B41: xx24 | E41: Yes | F41: R2- Followup | J41: OPCO | O41: Webi | P41: No | W41: Non
A42: 2023-11-09 | B42: xx25 | E42: Yes | F42: R2- Followup | J42: CPF | O42: Webi | P42: No | W42: Non
A43: 2023-11-10 | B43: xx26 | E43: Yes | F43: Closé | G43: 2500 | H43: 2500 | J43: CPF | L43: 0 | M43: 2500 | N43: 2500 | O43: Webi | R43: Femme | W43: Non
A44: 2023-11-10 | B44: xx27 | E44: Yes | F44: R2- Followup | J44: CASH X1 | O44: Webi | P44: No | W44: Non
A45: 2023-11-10 | B45: xx28 | E45: Yes | F45: Closé | G45: 2500 | H45: 2500 | J45: CPF | L45: 0 | M45: 2500 | N45: 2500 | O45: Webi | R45: Femme | W45: Non
A46: 2023-11-10 | B46: xx29 | E46: Yes | F46: R2- Followup | O46: Webi | W46: Non
A47: test JPP | B47: xx30 | E47: Yes | F47: Closé | G47: 2500 | H47: 750 | I47: 1 | J47: CASH divisé X3 | L47: 0 | O47: Webi | P47: Yes | R47: Femme | W47: Non
A48: 2023-11-11 | B48: xx31 | E48: No | F48: No show | W48: Non
A49: 2023-11-13 | B49: xx32 | E49: Yes | F49: R2- Followup | J49: CASH X1 | O49: Webi | P49: Yes | W49: Non
A50: test JPP | B50: xx33 | E50: Yes | F50: R2- Followup | I50: 1 | J50: CASH divisé X6 | O50: Webi | P50: No | W50: Non
A51: 2023-11-13 | B51: xx34 | E51: Yes | J51: CPF | O51: Webi | P51: No | W51: Non
A52: test JPP | B52: xx35 | E52: Yes | F52: R2- Followup | I52: 1 | J52: CASH divisé X6 | K52: 500 | O52: Webi | P52: Yes | W52: Non
A53: 2023-11-14 | B53: xx36 | E53: No | F53: No show | W53: Non
A54: 2023-11-15 | B54: xx37 | E54: Yes | F54: R2- Followup | J54: CPF | O54: Webi | W54: Non
A55: 2023-11-15 | B55: xx38 | E55: Yes | F55: Closé | G55: 2500 | H55: 2500 | J55: CPF | K55: 700 | L55: 700 | M55: 1800 | N55: 2500 | O55: Webi | W55: Non
A56: 2023-11-16 | B56: xx39 | E56: Yes | F56: Closé | G56: 2500 | H56: 2500 | J56: CPF | K56: 2500 | L56: 2500 | M56: 0 | N56: 2500 | O56: Webi | R56: Femme | W56: Non
A57: 2023-11-16 | B57: xx40 | E57: Yes | F57: R2- Followup | J57: CPF | K57: 370 | O57: Webi | P57: No | W57: Non
A58: 2023-11-16 | B58: xx41 | E58: Yes | F58: Autres | J58: CASH X1 | O58: Webi | W58: Non
A59: 2023-11-17 | B59: xx42 | E59: Yes | F59: Closé | G59: 2000 | H59: 2000 | J59: CASH X1 | L59: 0 | O59: Webi | R59: Femme | W59: Non
A60: 2023-11-17 | B60: xx43 | E60: Yes | F60: R2- Followup | J60: CASH X1 | O60: Webi | P60: No | W60: Non
A61: 2023-11-17 | B61: xx44 | E61: Yes | F61: R2- Followup | O61: Webi | P61: No | W61: Non
A62: 2023-11-17 | B62: xx45 | E62: No | F62: Rdv annulé | O62: Webi | W62: Non
A63: 2023-11-17 | B63: xx46 | E63: Yes | F63: R2- Followup | O63: Webi | P63: No | W63: Non
A64: 2023-11-17 | B64: xx47 | E64: No | F64: No show | W64: Non
A65: 2023-11-17 | B65: xx48 | E65: Yes | F65: R2- Followup | O65: Webi | P65: No | W65: Non
A66: 2023-11-17 | B66: xx49 | E66: No | F66: No show | P66: No | W66: Non
A67: 2023-11-20 | B67: xx50 | E67: Yes | F67: R2- Followup | J67: CPF | O67: Webi | P67: No | W67: Non
A68: 2023-11-20 | B68: xx51 | E68: Yes | F68: R2- Followup | O68: Webi | W68: Non
A69: 2023-11-21 | B69: xx52 | E69: Yes | F69: R2- Followup | J69: CASH X1 | O69: Facebook | P69: No | W69: Non
A70: 2023-11-22 | B70: xx53 | E70: Yes | F70: Closé | G70: 2500 | H70: 2500 | J70: CPF | K70: 2360 | L70: 2360 | M70: 140 | N70: 2500 | O70: Webi | P70: Yes | R70: Homme | W70: Non
A71: 2023-11-23 | B71: xx54 | E71: Yes | F71: Closé | G71: 2000 | H71: 2000 | J71: CASH X1 | L71: 0 | O71: Webi | R71: Femme | W71: Non
A72: 2023-11-23 | B72: xx55 | E72: No | W72: Non
A73: 2023-11-24 | B73: xx56 | E73: No | W73: Non
A74: 2023-11-25 | B74: xx57 | E74: Yes | F74: R2- Followup | O74: Webi | W74: Non
A75: 2023-11-25 | B75: xx58 | E75: Yes | F75: Refus | P75: Yes | W75: Non
A76: 2023-11-25 | B76: xx59 | E76: Yes | F76: R2- Followup | O76: Webi | W76: Non
A77: 2023-11-25 | B77: xx60 | E77: Yes | O77: Webi | P77: No | W77: Non
A78: 2023-11-25 | B78: xx61 | E78: No | F78: No show | W78: Non
A79: 2023-11-25 | B79: xx62 | E79: No | F79: Rdv annulé | W79: Non
A80: 2023-11-25 | B80: xx63 | E80: Yes | F80: R2- Followup | O80: Webi | P80: No | W80: Non
A81: 2023-11-25 | B81: xx64 | E81: Yes | F81: Rdv annulé | W81: Non
A82: 2023-11-25 | B82: xx65 | E82: Yes | F82: Closé | G82: 2000 | H82: 2000 | J82: CASH X1 | L82: 0 | O82: Webi | P82: Yes | R82: Femme | W82: Non
A83: 2023-11-27 | B83: xx66 | E83: Yes | F83: Closé | G83: 2500 | H83: 2500 | J83: CPF | L83: 0 | M83: 2500 | N83: 2500 | O83: Webi | R83: Femme | W83: Non
A84: 2023-11-27 | B84: xx67 | E84: Yes | F84: Closé | G84: 2500 | H84: 2500 | J84: CPF | L84: 0 | M84: 2500 | N84: 2500 | O84: Webi | R84: Femme | W84: Non
A85: 2023-11-27 | B85: xx68 | E85: Yes | F85: R2- Followup | O85: Webi | P85: No | W85: Non
A86: 2023-11-29 | B86: xx69 | E86: No | F86: Rdv replanifié | P86: Yes | W86: Non
A87: 2023-11-29 | B87: xx70 | E87: No | F87: Rdv annulé | W87: Non
A88: test JPP | B88: xx71 | E88: Yes | F88: Closé | G88: 2500 | H88: 750 | I88: 1 | J88: CASH divisé X3 | L88: 0 | O88: Webi | R88: Femme | W88: Non
A89: 2023-11-29 | B89: xx72 | E89: Yes | F89: R2- Followup | J89: CPF | O89: Webi | P89: Yes | W89: Non
W90: Non
W91: Non
W92: Non
W93: Non
W94: Non
W95: Non
W96: Non
W97: Non
W98: Non
W99: Non
W100: Non
W101: Non
W102: Non
W103: Non

Sheet Dec 23
F1: Gross Totals
B2: Cold Traffic | D2: Paiement CPF: | E2: =SUMIF(J21:J106,"CPF",H21:H99) -> 5000 | F2: CA global : | G2: =SUM(G21:G251) -> 9500
B3: Rdv bookés | C3: =COUNTIF(E21:E106, "Yes")+COUNTIF(E21:E106, "No") -> 29 | D3: Paiement CPF + Cash | E3: =SUMIF(J21:J106,"CPF",H21:H99) -> 5000 | F3: Encaissé global : | G3: =SUM(H21:H251) -> 7750 | L3: Hommes | M3: =COUNTIFS(R21:R106, "homme") -> 3
B4: Rdv réalisés | C4: =COUNTIF(E21:E106, "Yes") -> 24 | D4: Paiement 1X cash: | E4: =SUMIF(J21:J106,"CASH 1 fois",G21:G106) -> 0 | F4: CA CPF | G4: =SUM(L21:L106) -> 0 | L4: Femme | M4: =COUNTIFS(R21:R106, "femme") -> 23
B5: Rdv replannifiés | C5: =COUNTIF(E21:E106, "Replannifié") -> 0 | D5: Paiement divisé Cash | E5: =SUMIF(J21:J106,"CASH divisé") -> 0 | F5: CA Cash | G5: =SUM(M21:M106) -> 0 | H5: Femmes closées | J5: =COUNTIFS(F21:F106,"closé",R21:R106, "femme") -> 4 | L5: % Conversion de Femmes closées /Femmes appelées | O5: =J5/M4 -> 0.1739130435
B6: Rdv annulés | C6: =COUNTIFS(F21:F106,"rdv annulé") -> 2 | D6: Opco | E6: =SUMIF(J21:J106,"OPCO") -> 0 | F6: Encaissé Cash | G6: =SUM(N21:N132) -> 0 | H6: Hommes closés | J6: =COUNTIFS(F21:F106,"closé",R21:R106, "homme") -> 0 | L6: % Conversion d' Hommes closés / Hommes appelés | O6: =J6/M3 -> 0
B7: R2 rdv | C7: =COUNTIFS(P21:P106, "Yes")+COUNTIFS(P21:P106, "No") -> 12 | D7: Follow-up | E7: =COUNTIF(F21:F106, "Follow-up") -> 0 | F7: Réservations : | G7: =C3 -> 29 | H7: Salariés closés | J7: =COUNTIFS(F21:F106,"closé",S21:S106, "Salarié(e)") -> 2 | L7: % Conversion de salariés | O7: =J7/G10 -> 0.5
B8: R2 Réalisés | C8: =COUNTIF(P21:P106, "Yes") -> 8 | D8: Echec | E8: =SUMIF(F21:F106, "echec") -> 0 | F8: Appels : | G8: 24 | H8: Sans-emploi closés | J8: =COUNTIFS(F21:F106,"closé",S21:S106,"Sans emploi") -> 0 | L8: % Conversion sans-emploi | O8: =J8/G10 -> 0
B9: No-Shows R1: | C9: =COUNTIFS(E21:E106, "No") -> 5 | D9: Non qualifiés | E9: =SUMIF(F21:F106, "Non qualifié") -> 0 | F9: Follow-up | G9: =E7 -> 0 | H9: Moyenne d'âge | J9: =AVERAGE(Q21:Q106) -> 38.6875
B10: Taux de présence R1: | C10: =C4/C3 -> 0.8275862069 | D10: Taux de conversion : | E10: =G10/G8 -> 0.1666666667 | F10: Closings : | G10: =COUNTIFS(F21:F122, "Closé") -> 4
B11: Taux de présence R2: | C11: =C8/C7 -> 0.6666666667 | D11: Total CA closé : | E11: =E2+E3+E4+E5+E6 -> 10000
D12: Moyenne montant CPF | E12: =AVERAGE(L21:L86) -> 
A13: 2023-12-01
A14: Date | B14: NOM prénom | C14: E-Mail | D14: Téléphone | E14: Présent | F14: Etat | G14: CA | H14: Encaissé | I14: X | J14: Offre | K14: CPF Dispo | L14: Montant en CPF | M14: Montant en Cash | N14: Montant encaissé en cash | O14: Origine | P14: Présent R2 | Q14: Age | R14: Sexe | S14: Statut | T14: Fonction | U14: Remarque | V14: Raison Refus | W14: Offre copies 3/6
A15: Début liste des reports d'acompte
A16: test JPP | B16: xx14 | D16: 62511455 | E16: Yes | F16: Done | G16: 2500 | H16: =IF(F16="Closé",IF(J16="CASH divisé X3",750,IF(J16="CASH divisé X6",416.16,IF(J16="CASH X1",2000,IF(OR(J16="CPF",J16= "CPF + CASH",J16= "OPCO",J16= "AGEFIPH"),G16,"")))),"") ->  | I16: 2 | J16: CASH divisé X3 | L16: =IF(F16="Closé",K16,"") ->  | M16: =IF(AND(F16="CLosé",OR(J16="CPF",J16="CPF + CASH",J16="OPCO",J16="AGEFIPH")),G16-K16,"") ->  | N16: =IF(AND(F16="CLosé",OR(J16="CPF",J16="CPF + CASH",J16="OPCO",J16="AGEFIPH")),G16,"") ->  | O16: Webi | R16: Femme | W16: Oui
A17: test JPP | B17: xx8 | C17: y@gmail.com | D17: 62511455 | E17: Yes | F17: Done | G17: 2500 | H17: =IF(F17="Closé",IF(J17="CASH divisé X3",750,IF(J17="CASH divisé X6",416.16,IF(J17="CASH X1",2000,IF(OR(J17="CPF",J17= "CPF + CASH",J17= "OPCO",J17= "AGEFIPH"),G17,"")))),"") ->  | I17: 2 | J17: CASH divisé X6 | L17: =IF(F17="Closé",K17,"") ->  | M17: =IF(AND(F17="CLosé",OR(J17="CPF",J17="CPF + CASH",J17="OPCO",J17="AGEFIPH")),G17-K17,"") ->  | N17: =IF(AND(F17="CLosé",OR(J17="CPF",J17="CPF + CASH",J17="OPCO",J17="AGEFIPH")),G17,"") ->  | O17: Webi | P17: Yes | R17: Femme | W17: Oui
A19: Début liste des écritures courantes du mois
E20: Yes | F20: Autres | J20: CPF | O20: Webi | R20: Homme | S20: Salarié(e) | W20: Non
E21: Yes | F21: R2- Followup | O21: Webi | P21: Yes | Q21: 39 | R21: Femme | S21: Sans emploi | W21: Non
E22: No | F22: No show | R22: Femme | W22: Non
E23: Yes | F23: R2- Followup | J23: CPF | O23: Webi | P23: Yes | R23: Homme | W23: Non
E24: Yes | F24: R2- Followup | J24: CPF | O24: Webi | P24: Yes | Q24: 33 | R24: Femme | W24: Non
E25: Yes | F25: R2- Followup | J25: CPF | K25: 2040 | O25: Webi | P25: Yes | Q25: 47 | R25: Femme | W25: Non
E26: Yes | F26: Closé | G26: 2500 | H26: 750 | J26: CASH divisé X3 | O26: Webi | Q26: 53 | R26: Femme | W26: Non
E27: Yes | F27: Closé | G27: 2500 | H27: 2500 | J27: CPF | O27: Webi | P27: Yes | Q27: 42 | R27: Femme | W27: Non
E28: Yes | F28: Closé | G28: 2500 | H28: 2500 | J28: CPF | O28: Webi | R28: Femme | S28: Salarié(e) | W28: Non
E29: Yes | F29: R2- Followup | J29: CPF | K29: 1200 | O29: Webi | R29: Homme | S29: Sans emploi | W29: Non
E30: Yes | F30: R2- Followup | J30: CPF | K30: 1035 | O30: Webi | P30: Yes | Q30: 50 | R30: Femme | S30: Sans emploi | W30: Non
E31: Yes | F31: R2- Followup | J31: CPF | K31: 2500 | O31: Webi | P31: No | Q31: 29 | R31: Femme | S31: Sans emploi | W31: Non
E32: Yes | F32: R2- Followup | J32: CASH divisé X6 | O32: Webi | P32: No | Q32: 21 | R32: Femme | S32: Sans emploi | W32: Non
E33: Yes | F33: R2- Followup | O33: Webi | R33: Femme | S33: Salarié(e) | W33: Non
E34: Yes | F34: R2- Followup | J34: CASH divisé X6 | O34: Webi | R34: Femme | S34: Sans emploi | W34: Non
E35: Yes | F35: R2- Followup | J35: CPF | O35: Webi | Q35: 28 | R35: Femme | S35: Sans emploi | W35: Non
E36: No | F36: No show | W36: Non
E37: Yes | F37: R2- Followup | J37: CPF | O37: Webi | Q37: 49 | R37: Homme | S37: Salarié(e) | W37: Non
E38: Yes | F38: R2- Followup | J38: CPF | K38: 1440 | O38: Webi | P38: Yes | Q38: 50 | R38: Femme | S38: Salarié(e) | W38: Non
E39: Yes | F39: R2- Followup | J39: CPF | K39: 2870 | O39: Webi | P39: No | Q39: 33 | R39: Femme | S39: Sans emploi | W39: Non
E40: Yes | F40: R2- Followup | O40: Webi | Q40: 39 | R40: Femme | S40: Sans emploi | W40: Non
E41: Yes | F41: R2- Followup | O41: Webi | R41: Femme | W41: Non
E42: Yes | F42: R2- Followup | K42: 1625 | O42: Webi | Q42: 39 | R42: Femme | S42: Salarié(e) | W42: Non
E43: No | F43: No show | W43: Non
E44: No | F44: No show | S44: Sans emploi | W44: Non
E45: Yes | F45: Closé | G45: 2000 | H45: 2000 | J45: CASH X1 | O45: Webi | P45: Yes | Q45: 35 | R45: Femme | S45: Salarié(e) | W45: Non
E46: No | F46: Rdv annulé | R46: Femme | W46: Non
E47: Yes | F47: R2- Followup | O47: Webi | R47: Femme | S47: Salarié(e) | W47: Non
E48: Yes | F48: Rdv annulé | J48: CASH divisé X6 | O48: Webi | P48: No | Q48: 32 | R48: Femme | S48: Sans emploi | W48: Non
E49: Yes | F49: R2- Followup | J49: CPF | O49: Webi | R49: Femme | S49: Sans emploi | W49: Non
W50: Non
W51: Non
W52: Non
W53: Non
W54: Non
W55: Non
W56: Non
W57: Non
W58: Non
W59: Non
W60: Non
W61: Non
W62: Non
W63: Non
W64: Non
W65: Non
W66: Non
W67: Non
W68: Non
W69: Non
W70: Non
W71: Non
W72: Non
W73: Non
W74: Non
W75: Non
W76: Non
W77: Non
W78: Non
W79: Non
W80: Non
W81: Non
W82: Non
W83: Non
W84: Non
W85: Non
W86: Non
W87: Non
W88: Non
W89: Non
W90: Non
W91: Non
W92: Non
W93: Non
W94: Non
W95: Non
W96: Non
W97: Non
W98: Non
W99: Non
W100: Non

Sheet Global 2023
B3: Cold Traffic | D3: Paiement CPF: | E3: ='Oct 23'!E2+'Nov 23'!E2+'Dec 23'!E2 -> 27500 | F3: CA global : | G3: ='Oct 23'!G2+'Nov 23'!G2+'Dec 23'!G2 -> 60500
B4: Rdv bookés | C4: ='Oct 23'!C3+'Nov 23'!C3+'Dec 23'!C3 -> 101 | D4: Paiement CPF + Cash | E4: ='Oct 23'!E3+'Nov 23'!E3+'Dec 23'!E3 -> 27500 | F4: Encaissé global : | G4: ='Oct 23'!G3+'Nov 23'!G3+'Dec 23'!G3 -> 42998.48
B5: Rdv réalisés | C5: ='Oct 23'!C4+'Nov 23'!C4+'Dec 23'!C4 -> 83 | D5: Paiement 1X cash: | E5: ='Oct 23'!E4+'Nov 23'!E4+'Dec 23'!E4 -> 0 | F5: CA CPF | G5: ='Oct 23'!G4+'Nov 23'!G4+'Dec 23'!G4 -> 9460
B6: Rdv replannifiés | C6: ='Oct 23'!C5+'Nov 23'!C5+'Dec 23'!C5 -> 0 | D6: Paiement divisé Cash | E6: ='Oct 23'!E5+'Nov 23'!E5+'Dec 23'!E5 -> 0 | F6: CA Cash | G6: ='Oct 23'!G5+'Nov 23'!G5+'Dec 23'!G5 -> 13040 | H6: Femmes closées | I6: ='Oct 23'!I5+'Nov 23'!J5+'Dec 23'!J5 -> 21 | K6: % Conversion de Femmes | L6: =I6/G11 -> 0.875
B7: Rdv annulés | C7: ='Oct 23'!C6+'Nov 23'!C6+'Dec 23'!C6 -> 6 | D7: Opco | E7: ='Oct 23'!E6+'Nov 23'!E6+'Dec 23'!E6 -> 0 | F7: Encaissé Cash | G7: ='Oct 23'!G6+'Nov 23'!G6+'Dec 23'!G6 -> 22500 | H7: Hommes closés | I7: ='Oct 23'!I6+'Nov 23'!J6+'Dec 23'!J6 -> 1 | K7: % Conversion d' Hommes | L7: =I7/G11 -> 0.04166666667
B8: R2 rdv | C8: ='Oct 23'!C7+'Nov 23'!C7+'Dec 23'!C7 -> 46 | D8: Follow-up | E8: ='Oct 23'!E7+'Nov 23'!E7+'Dec 23'!E7 -> 0 | F8: Réservations : | G8: ='Oct 23'!G7+'Nov 23'!G7+'Dec 23'!G7 -> 101 | H8: Salariés closés | I8: ='Oct 23'!I7+'Nov 23'!J7+'Dec 23'!J7 -> 2 | K8: % Conversion de salariés | L8: =I8/G11 -> 0.08333333333
B9: R2 Réalisés | C9: ='Oct 23'!C8+'Nov 23'!C8+'Dec 23'!C8 -> 24 | D9: Echec | E9: ='Oct 23'!E8+'Nov 23'!E8+'Dec 23'!E8 -> 0 | F9: Appels : | G9: ='Oct 23'!G8+'Nov 23'!G8+'Dec 23'!G8 -> 83 | H9: Sans-emploi closés | I9: ='Oct 23'!I8+'Nov 23'!J8+'Dec 23'!J8 -> 0 | K9: % Conversion sans-emploi | L9: =I9/G11 -> 0
B10: No-Shows : | C10: ='Oct 23'!C9+'Nov 23'!C9+'Dec 23'!C9 -> 18 | D10: Non qualifiés | E10: ='Oct 23'!E9+'Nov 23'!E9+'Dec 23'!E9 -> 0 | F10: Follow-up | G10: ='Oct 23'!G9+'Nov 23'!G9+'Dec 23'!G9 -> 0 | H10: Moyenne d'âge | I10: =AVERAGE('Oct 23'!I9,'Nov 23'!J9,'Dec 23'!J9) -> 
B11: Taux de présence R1: | C11: =AVERAGE('Oct 23'!C10,'Nov 23'!C10,'Dec 23'!C10) ->  | D11: Taux de conversion : | E11: =AVERAGE('Oct 23'!E10,'Nov 23'!E10,'Dec 23'!E10) ->  | F11: Closings : | G11: ='Oct 23'!G10+'Nov 23'!G10+'Dec 23'!G10 -> 24
B12: Taux de présence R2: | C12: =AVERAGE('Oct 23'!C11,'Nov 23'!C11,'Dec 23'!C11) ->  | D12: Total CA closé : | E12: ='Oct 23'!E11+'Nov 23'!E11+'Dec 23'!E11 -> 55000
D13: Moy montant closé CPF | E13: =AVERAGE('Oct 23'!E12,'Nov 23'!E12,'Dec 23'!E12) -> 
C17: OCT | D17: ='Oct 23'!G2 -> 2500 | F17: Taux de conv mensuel :
C18: NOV | D18: ='Nov 23'!G2 -> 48500 | F18: OCT | G18: ='Oct 23'!E10 -> 
C19: DEC | D19: ='Dec 23'!G2 -> 9500 | F19: NOV | G19: ='Nov 23'!E10 -> 0.3220338983
F20: DEC | G20: ='Dec 23'!E10 -> 0.1666666667
D44: 2024-01-01
D45: =EDATE(D44,1) -> 2024-02-01

Sheet Jan 24
F1: Gross Totals
B2: Cold Traffic | D2: Paiement CPF: | E2: =SUMIF(I18:I106,"CPF",G18:G106) -> 0 | F2: CA global : | G2: =SUM(G18:G251) -> 12000
B3: Rdv bookés | C3: =COUNTIF(E18:E106, "Yes")+COUNTIF(E18:E106, "No") -> 28 | D3: Paiement CPF + Cash | E3: =SUMIF(I18:I106,"CPF + CASH",G18:G106) -> 0 | F3: Encaissé global : | G3: =SUM(H18:H251) -> 9916.66
B4: Rdv réalisés | C4: =COUNTIF(E18:E106, "Yes") -> 19 | D4: Paiement 1X cash: | E4: =SUMIF(I18:I106,"CASH 1 fois",G18:G106) -> 0 | F4: CA CPF | G4: =SUM(K18:K106) -> 11537
B5: Rdv replannifiés | C5: =COUNTIF(E18:E106, "Replannifié") -> 0 | D5: Paiement divisé Cash | E5: =SUMIF(I19:I106,"CASH divisé",G19:G106) -> 0 | F5: CA Cash | G5: =SUM(L18:L106) -> 3837 | H5: Femmes closées | I5: =COUNTIFS(F18:F106,"closé",Q18:Q106, "femme") -> 0 | K5: % Conversion de Femmes | L5: =I5/G10 -> 0
B6: Rdv annulés | C6: =COUNTIFS(F2:F106,"rdv annulé")/C3 -> 0.07142857143 | D6: Opco | E6: =SUMIF(I20:I106,"OPCO",G20:G106) -> 0 | F6: Encaissé Cash | G6: =SUM(M18:M132) -> 1163 | H6: Hommes closés | I6: =COUNTIFS(F18:F106,"closé",Q18:Q106, "homme") -> 0 | K6: % Conversion d' Hommes | L6: =I6/G10 -> 0
B7: R2 rdv | C7: =COUNTIFS(O18:O106, "Yes")+COUNTIFS(O18:O106, "No") -> 0 | D7: Follow-up | E7: =COUNTIF(F18:F106, "Follow-up") -> 0 | F7: Réservations : | G7: =C3 -> 28 | H7: Salariés closés | I7: =COUNTIFS(F18:F106,"closé",R18:R106, "Salarié(e)") -> 0 | K7: % Conversion de salariés | L7: =I7/G10 -> 0
B8: R2 Réalisés | C8: =COUNTIF(O18:O106, "Yes") -> 0 | D8: Echec | E8: =COUNTIF(F19:F106, "echec") -> 0 | F8: Appels : | G8: 19 | H8: Sans-emploi closés | I8: =COUNTIFS(F18:F106,"closé",R18:R106,"Sans emploi") -> 0 | K8: % Conversion sans-emploi | L8: =I8/G10 -> 0
B9: No-Shows : | C9: =COUNTIFS(E18:E106, "No") -> 9 | D9: Non qualifiés | E9: =COUNTIF(F20:F106, "Non qualifié") -> 0 | F9: Follow-up | G9: =E7 -> 0 | H9: Moyenne d'âge | I9: =AVERAGE(P18:P106) -> 
B10: Taux de présence R1: | C10: =C4/C3 -> 0.6785714286 | D10: Taux de conversion : | E10: =G10/G8 -> 0.2631578947 | F10: Closings : | G10: =COUNTIFS(F18:F122, "Closé") -> 5
B11: Taux de présence R2: | C11: =C8/C7 ->  | D11: Total CA closé : | E11: =E2+E3+E4+E5+E6 -> 0
D12: Moyenne montant CPF | E12: =AVERAGEIF(I18:I106,"CPF",G18:G106) -> 
A13: 2024-01-01
A14: Date | B14: NOM prénom | C14: E-Mail | D14: Téléphone | E14: Présent | F14: Etat | G14: CA | H14: Encaissé | I14: X | J14: Offre | K14: CPF Dispo | L14: Montant en CPF | M14: Montant en Cash | N14: Montant encaissé en cash | O14: Origine | P14: Présent R2 | Q14: Age | R14: Sexe | S14: Statut | T14: Fonction | U14: Remarques | V14: Raison Refus | W14: Offre copies 3/6
A15: Début liste des reports d'acompte
A16: test JPP | B16: xx14 | D16: 62511455 | E16: Yes | F16: Done | G16: 2500 | H16: =IF(F16="Closé",IF(J16="CASH divisé X3",750,IF(J16="CASH divisé X6",416.16,IF(J16="CASH X1",2000,IF(OR(J16="CPF",J16= "CPF + CASH",J16= "OPCO",J16= "AGEFIPH"),G16,"")))),"") ->  | I16: 3 | J16: CASH divisé X3 | L16: =IF(F16="Closé",K16,"") ->  | M16: =IF(AND(F16="CLosé",OR(J16="CPF",J16="CPF + CASH",J16="OPCO",J16="AGEFIPH")),G16-K16,"") ->  | N16: =IF(AND(F16="CLosé",OR(J16="CPF",J16="CPF + CASH",J16="OPCO",J16="AGEFIPH")),G16,"") ->  | O16: Webi | R16: Femme | W16: Oui
A17: test JPP | B17: xx8 | C17: y@gmail.com | D17: 62511455 | E17: Yes | F17: Done | G17: 2500 | H17: =IF(F17="Closé",IF(J17="CASH divisé X3",750,IF(J17="CASH divisé X6",416.16,IF(J17="CASH X1",2000,IF(OR(J17="CPF",J17= "CPF + CASH",J17= "OPCO",J17= "AGEFIPH"),G17,"")))),"") ->  | I17: 3 | J17: CASH divisé X6 | L17: =IF(F17="Closé",K17,"") ->  | M17: =IF(AND(F17="CLosé",OR(J17="CPF",J17="CPF + CASH",J17="OPCO",J17="AGEFIPH")),G17-K17,"") ->  | N17: =IF(AND(F17="CLosé",OR(J17="CPF",J17="CPF + CASH",J17="OPCO",J17="AGEFIPH")),G17,"") ->  | O17: Webi | P17: Yes | R17: Femme | W17: Oui
A19: Début liste des écritures courantes du mois
E20: Yes | F20: R2- Followup | J20: CPF | K20: 3000 | O20: Webi | P20: No | R20: Homme | S20: Salarié(e) | W20: Non
E21: Yes | F21: Closé | G21: 2000 | H21: 2000 | J21: CASH X1 | O21: Webi | Q21: 53 | R21: Femme | W21: Non
E22: Yes | F22: R2- Followup | J22: CPF | K22: 1700 | O22: Webi | R22: Femme | S22: Sans emploi | W22: Non
E23: Yes | F23: R2- Followup | O23: Webi | R23: Femme | S23: Salarié(e) | W23: Non
E24: Yes | F24: R2- Followup | J24: CPF | O24: Webi | P24: Yes | R24: Femme | S24: Salarié(e) | W24: Non
E25: Yes | F25: R2- Followup | O25: Webi | R25: Femme | S25: Salarié(e) | W25: Non
E26: Yes | F26: Closé | G26: 2500 | H26: 2500 | J26: CPF | K26: 3000 | O26: Webi | P26: Yes | Q26: 29 | R26: Homme | S26: Salarié(e) | W26: Non
E27: Yes | F27: R2- Followup | O27: Insta | Q27: 25 | R27: Homme | S27: Indépendant | W27: Non
E28: Yes | F28: R2- Followup | O28: Webi | R28: Homme | W28: Non
E29: Yes | F29: R2- Followup | O29: Webi | R29: Homme | S29: Indépendant | W29: Non
E30: Yes | F30: Closé | G30: 2500 | H30: 2500 | J30: CPF | K30: 1515 | L30: 1515 | M30: 985 | N30: 2500 | O30: Webi | Q30: 23 | R30: Femme | S30: Salarié(e) | W30: Non
E31: Yes | F31: R2- Followup | O31: Webi | P31: No | R31: Femme | S31: Sans emploi | W31: Non
E32: Yes | F32: R2- Followup | O32: Webi | P32: No | R32: Femme | W32: Non
E33: Yes | F33: R2- Followup | J33: CASH divisé X6 | O33: Webi | P33: No | R33: Femme | S33: Sans emploi | W33: Non
E34: Yes | F34: Rdv replanifié | O34: Webi | P34: No | R34: Femme | W34: Non
E35: No | F35: No show | W35: Non
E36: Yes | F36: R2- Followup | O36: Webi | R36: Femme | S36: Sans emploi | W36: Non
E37: No | F37: No show | O37: Webi | R37: Femme | W37: Non
E38: No | F38: No show | W38: Non
E39: No | F39: Rdv replanifié | O39: Webi | R39: Femme | W39: Non
E40: Yes | F40: R2- Followup | O40: Webi | Q40: 51 | R40: Femme | S40: Indépendant | W40: Non
E41: No | F41: No show | W41: Non
E42: Yes | F42: Closé | G42: 2500 | H42: 2500 | J42: CPF | K42: 2322 | L42: 2322 | M42: 178 | N42: 2500 | O42: Webi | Q42: 29 | R42: Homme | S42: Salarié(e) | W42: Non
E43: Yes | F43: Closé | G43: 2500 | H43: 416.66 | J43: CASH divisé X6 | O43: Webi | Q43: 26 | R43: Homme | S43: Sans emploi | W43: Non
E44: No | F44: No show | W44: Non
E45: No | F45: Rdv annulé | W45: Non
E46: No | F46: Rdv annulé | W46: Non
E47: No | W47: Non
W48: Non
W49: Non
W50: Non
W51: Non
W52: Non
W53: Non
W54: Non
W55: Non
W56: Non
W57: Non
W58: Non
W59: Non
W60: Non
W61: Non
W62: Non
W63: Non
W64: Non
W65: Non
W66: Non
W67: Non
W68: Non
W69: Non
W70: Non
W71: Non
W72: Non
W73: Non
W74: Non
W75: Non
W76: Non
W77: Non
W78: Non
W79: Non
W80: Non
W81: Non
W82: Non
W83: Non
W84: Non
W85: Non
W86: Non
W87: Non
W88: Non
W89: Non
W90: Non
W91: Non
W92: Non
W93: Non
W94: Non
W95: Non
W96: Non
W97: Non
W98: Non
W99: Non
W100: Non
W101: Non
W102: Non

Sheet Fev 24
F1: Gross Totals
B2: Cold Traffic | D2: Paiement CPF: | E2: =SUMIF(I21:I108,"CPF",H21:H102) -> 0 | F2: CA global : | G2: =SUM(G21:G253) -> 0
B3: Rdv bookés | C3: =COUNTIF(E21:E108, "Yes")+COUNTIF(E21:E108, "No") -> 0 | D3: Paiement CPF + Cash | E3: =SUMIF(I21:I108,"CPF",H21:H102) -> 0 | F3: Encaissé global : | G3: =SUM(H21:H253) -> 0 | K3: Hommes | L3: =COUNTIFS(Q24:Q108, "homme") -> 0
B4: Rdv réalisés | C4: =COUNTIF(E21:E108, "Yes") -> 0 | D4: Paiement 1X cash: | E4: =SUMIF(I21:I108,"CASH 1 fois",G21:G108) -> 0 | F4: CA CPF | G4: =SUM(K21:K108) -> 0 | K4: Femme | L4: =COUNTIFS(Q24:Q108, "femme") -> 0
B5: Rdv replannifiés | C5: =COUNTIF(E21:E108, "Replannifié") -> 0 | D5: Paiement divisé Cash | E5: =SUMIF(I21:I108,"CASH divisé") -> 0 | F5: CA Cash | G5: =SUM(L21:L108) -> 0 | H5: Femmes closées | I5: =COUNTIFS(F21:F108,"closé",Q21:Q108, "femme") -> 0 | K5: % Conversion de Femmes closées /Femmes appelées | N5: =I5/L4 -> 
B6: Rdv annulés | C6: =COUNTIFS(F21:F108,"rdv annulé") -> 0 | D6: Opco | E6: =SUMIF(I21:I108,"OPCO") -> 0 | F6: Encaissé Cash | G6: =SUM(M21:M134) -> 0 | H6: Hommes closés | I6: =COUNTIFS(F21:F108,"closé",Q21:Q108, "homme") -> 0 | K6: % Conversion d' Hommes closés / Hommes appelés | N6: =I6/L3 -> 
B7: R2 rdv | C7: =COUNTIFS(O21:O108, "Yes")+COUNTIFS(O21:O108, "No") -> 0 | D7: Follow-up | E7: =COUNTIF(F21:F108, "Follow-up") -> 0 | F7: Réservations : | G7: =C3 -> 0 | H7: Salariés closés | I7: =COUNTIFS(F21:F108,"closé",R21:R108, "Salarié(e)") -> 0 | K7: % Conversion de salariés | N7: =I7/G10 -> 
B8: R2 Réalisés | C8: =COUNTIF(O21:O108, "Yes") -> 0 | D8: Echec | E8: =SUMIF(F21:F108, "echec") -> 0 | F8: Appels : | G8: 0 | H8: Sans-emploi closés | I8: =COUNTIFS(F21:F108,"closé",R21:R108,"Sans emploi") -> 0 | K8: % Conversion sans-emploi | N8: =I8/G10 -> 
B9: No-Shows R1: | C9: =COUNTIFS(E21:E108, "No") -> 0 | D9: Non qualifiés | E9: =SUMIF(F21:F108, "Non qualifié") -> 0 | F9: Follow-up | G9: =E7 -> 0 | H9: Moyenne d'âge | I9: =AVERAGE(P21:P108) -> 
B10: Taux de présence R1: | C10: =C4/C3 ->  | D10: Taux de conversion : | E10: =G10/G8 ->  | F10: Closings : | G10: =COUNTIFS(F21:F124, "Closé") -> 0
B11: Taux de présence R2: | C11: =C8/C7 ->  | D11: Total CA closé : | E11: =E2+E3+E4+E5+E6 -> 0
D12: Moyenne montant CPF | E12: =AVERAGE(K21:K89) -> 
A13: 2024-02-01
A14: Date | B14: NOM prénom | C14: E-Mail | D14: Téléphone | E14: Présent | F14: Etat | G14: CA | H14: Encaissé | I14: X | J14: Offre | K14: CPF Dispo | L14: Montant en CPF | M14: Montant en Cash | N14: Montant encaissé en cash | O14: Origine | P14: Présent R2 | Q14: Age | R14: Sexe | S14: Statut | T14: Fonction | U14: Remarques | V14: Raison Refus | W14: Offre copies 3/6
A15: Début liste des reports d'acompte
A16: test JPP | B16: xx8 | C16: y@gmail.com | D16: 62511455 | E16: Yes | F16: Done | G16: 2500 | H16: =IF(F16="Closé",IF(J16="CASH divisé X3",750,IF(J16="CASH divisé X6",416.16,IF(J16="CASH X1",2000,IF(OR(J16="CPF",J16= "CPF + CASH",J16= "OPCO",J16= "AGEFIPH"),G16,"")))),"") ->  | I16: 4 | J16: CASH divisé X6 | L16: =IF(F16="Closé",K16,"") ->  | M16: =IF(AND(F16="CLosé",OR(J16="CPF",J16="CPF + CASH",J16="OPCO",J16="AGEFIPH")),G16-K16,"") ->  | N16: =IF(AND(F16="CLosé",OR(J16="CPF",J16="CPF + CASH",J16="OPCO",J16="AGEFIPH")),G16,"") ->  | O16: Webi | P16: Yes | R16: Femme | W16: Oui
A18: Début liste des écritures courantes du mois
W19: Non
W20: Non
W21: Non
W22: Non
W23: Non
W24: Non
W25: Non
W26: Non
W27: Non
W28: Non
W29: Non
W30: Non
W31: Non
W32: Non
W33: Non
W34: Non
W35: Non
W36: Non
W37: Non
W38: Non
W39: Non
W40: Non
W41: Non
W42: Non
W43: Non
W44: Non
W45: Non
W46: Non
W47: Non
W48: Non
W49: Non
W50: Non
W51: Non
W52: Non
W53: Non
W54: Non
W55: Non
W56: Non
W57: Non
W58: Non
W59: Non
W60: Non
W61: Non
W62: Non
W63: Non
W64: Non
W65: Non
W66: Non
W67: Non
W68: Non
W69: Non
W70: Non
W71: Non
W72: Non
W73: Non
W74: Non
W75: Non
W76: Non
W77: Non
W78: Non
W79: Non
W80: Non
W81: Non
W82: Non
W83: Non
W84: Non
W85: Non
W86: Non
W87: Non
W88: Non
W89: Non
W90: Non
W91: Non
W92: Non
W93: Non
W94: Non
W95: Non
W96: Non
W97: Non
W98: Non
W99: Non
W100: Non
W101: Non
W102: Non
W103: Non
W104: Non
W105: Non
W106: Non

Sheet Mars 24
F1: Gross Totals
B2: Cold Traffic | D2: Paiement CPF: | E2: =SUMIF(I21:I108,"CPF",H21:H102) -> 0 | F2: CA global : | G2: =SUM(G21:G253) -> 0
B3: Rdv bookés | C3: =COUNTIF(E21:E108, "Yes")+COUNTIF(E21:E108, "No") -> 0 | D3: Paiement CPF + Cash | E3: =SUMIF(I21:I108,"CPF",H21:H102) -> 0 | F3: Encaissé global : | G3: =SUM(H21:H253) -> 0 | K3: Hommes | L3: =COUNTIFS(Q24:Q108, "homme") -> 0
B4: Rdv réalisés | C4: =COUNTIF(E21:E108, "Yes") -> 0 | D4: Paiement 1X cash: | E4: =SUMIF(I21:I108,"CASH 1 fois",G21:G108) -> 0 | F4: CA CPF | G4: =SUM(K21:K108) -> 0 | K4: Femme | L4: =COUNTIFS(Q24:Q108, "femme") -> 0
B5: Rdv replannifiés | C5: =COUNTIF(E21:E108, "Replannifié") -> 0 | D5: Paiement divisé Cash | E5: =SUMIF(I21:I108,"CASH divisé") -> 0 | F5: CA Cash | G5: =SUM(L21:L108) -> 0 | H5: Femmes closées | I5: =COUNTIFS(F21:F108,"closé",Q21:Q108, "femme") -> 0 | K5: % Conversion de Femmes closées /Femmes appelées | N5: =I5/L4 -> 
B6: Rdv annulés | C6: =COUNTIFS(F21:F108,"rdv annulé") -> 0 | D6: Opco | E6: =SUMIF(I21:I108,"OPCO") -> 0 | F6: Encaissé Cash | G6: =SUM(M21:M134) -> 0 | H6: Hommes closés | I6: =COUNTIFS(F21:F108,"closé",Q21:Q108, "homme") -> 0 | K6: % Conversion d' Hommes closés / Hommes appelés | N6: =I6/L3 -> 
B7: R2 rdv | C7: =COUNTIFS(O21:O108, "Yes")+COUNTIFS(O21:O108, "No") -> 0 | D7: Follow-up | E7: =COUNTIF(F21:F108, "Follow-up") -> 0 | F7: Réservations : | G7: =C3 -> 0 | H7: Salariés closés | I7: =COUNTIFS(F21:F108,"closé",R21:R108, "Salarié(e)") -> 0 | K7: % Conversion de salariés | N7: =I7/G10 -> 0
B8: R2 Réalisés | C8: =COUNTIF(O21:O108, "Yes") -> 0 | D8: Echec | E8: =SUMIF(F21:F108, "echec") -> 0 | F8: Appels : | G8: 0 | H8: Sans-emploi closés | I8: =COUNTIFS(F21:F108,"closé",R21:R108,"Sans emploi") -> 0 | K8: % Conversion sans-emploi | N8: =I8/G10 -> 0
B9: No-Shows R1: | C9: =COUNTIFS(E21:E108, "No") -> 0 | D9: Non qualifiés | E9: =SUMIF(F21:F108, "Non qualifié") -> 0 | F9: Follow-up | G9: =E7 -> 0 | H9: Moyenne d'âge | I9: =AVERAGE(P21:P108) -> 
B10: Taux de présence R1: | C10: =C4/C3 ->  | D10: Taux de conversion : | E10: =G10/G8 ->  | F10: Closings : | G10: =COUNTIFS(F21:F124, "Closé") -> 1
B11: Taux de présence R2: | C11: =C8/C7 ->  | D11: Total CA closé : | E11: =E2+E3+E4+E5+E6 -> 0
D12: Moyenne montant CPF | E12: =AVERAGE(K21:K89) -> 
A13: 2024-03-01
A14: Date | B14: NOM prénom | C14: E-Mail | D14: Téléphone | E14: Présent | F14: Etat | G14: CA | H14: Encaissé | I14: X | J14: Offre | K14: CPF Dispo | L14: Montant en CPF | M14: Montant en Cash | N14: Montant encaissé en cash | O14: Origine | P14: Présent R2 | Q14: Age | R14: Sexe | S14: Statut | T14: Fonction | U14: Remarques | V14: Raison Refus | W14: Offre copies 3/6
A15: Début liste des reports d'acompte
A16: test JPP | B16: xx8 | C16: y@gmail.com | D16: 62511455 | E16: Yes | F16: Done | G16: 2500 | H16: =IF(F16="Closé",IF(J16="CASH divisé X3",750,IF(J16="CASH divisé X6",416.16,IF(J16="CASH X1",2000,IF(OR(J16="CPF",J16= "CPF + CASH",J16= "OPCO",J16= "AGEFIPH"),G16,"")))),"") ->  | I16: 5 | J16: CASH divisé X6 | L16: =IF(F16="Closé",K16,"") ->  | M16: =IF(AND(F16="CLosé",OR(J16="CPF",J16="CPF + CASH",J16="OPCO",J16="AGEFIPH")),G16-K16,"") ->  | N16: =IF(AND(F16="CLosé",OR(J16="CPF",J16="CPF + CASH",J16="OPCO",J16="AGEFIPH")),G16,"") ->  | O16: Webi | P16: Yes | R16: Femme | W16: Oui
A18: Début liste des écritures courantes du mois
W19: Non
W20: Non
W21: Non
W22: Non
W23: Non
W24: Non
W25: Non
W26: Non
W27: Non
W28: Non
W29: Non
W30: Non
W31: Non
W32: Non
W33: Non
W34: Non
W35: Non
W36: Non
W37: Non
W38: Non
W39: Non
W40: Non
W41: Non
W42: Non
W43: Non
W44: Non
W45: Non
W46: Non
W47: Non
W48: Non
W49: Non
W50: Non
W51: Non
W52: Non
W53: Non
W54: Non
W55: Non
W56: Non
W57: Non
W58: Non
W59: Non
W60: Non
W61: Non
W62: Non
W63: Non
W64: Non
W65: Non
W66: Non
W67: Non
W68: Non
W69: Non
W70: Non
W71: Non
W72: Non
W73: Non
W74: Non
W75: Non
W76: Non
W77: Non
W78: Non
W79: Non
W80: Non
W81: Non
W82: Non
W83: Non
W84: Non
W85: Non
W86: Non
W87: Non
W88: Non
W89: Non
W90: Non
W91: Non
W92: Non
W93: Non
W94: Non
W95: Non
W96: Non
W97: Non
W98: Non
F99: Closé | W99: Non
W100: Non
W101: Non
W102: Non
W103: Non
W104: Non
W105: Non
W106: Non

Sheet Avril 24
F1: Gross Totals
B2: Cold Traffic | D2: Paiement CPF: | E2: =SUMIF(I21:I108,"CPF",H21:H102) -> 0 | F2: CA global : | G2: =SUM(G21:G253) -> 0
B3: Rdv bookés | C3: =COUNTIF(E21:E108, "Yes")+COUNTIF(E21:E108, "No") -> 0 | D3: Paiement CPF + Cash | E3: =SUMIF(I21:I108,"CPF",H21:H102) -> 0 | F3: Encaissé global : | G3: =SUM(H21:H253) -> 0 | K3: Hommes | L3: =COUNTIFS(Q24:Q108, "homme") -> 0
B4: Rdv réalisés | C4: =COUNTIF(E21:E108, "Yes") -> 0 | D4: Paiement 1X cash: | E4: =SUMIF(I21:I108,"CASH 1 fois",G21:G108) -> 0 | F4: CA CPF | G4: =SUM(K21:K108) -> 0 | K4: Femme | L4: =COUNTIFS(Q24:Q108, "femme") -> 0
B5: Rdv replannifiés | C5: =COUNTIF(E21:E108, "Replannifié") -> 0 | D5: Paiement divisé Cash | E5: =SUMIF(I21:I108,"CASH divisé") -> 0 | F5: CA Cash | G5: =SUM(L21:L108) -> 0 | H5: Femmes closées | I5: =COUNTIFS(F21:F108,"closé",Q21:Q108, "femme") -> 0 | K5: % Conversion de Femmes closées /Femmes appelées | N5: =I5/L4 -> 
B6: Rdv annulés | C6: =COUNTIFS(F21:F108,"rdv annulé") -> 0 | D6: Opco | E6: =SUMIF(I21:I108,"OPCO") -> 0 | F6: Encaissé Cash | G6: =SUM(M21:M134) -> 0 | H6: Hommes closés | I6: =COUNTIFS(F21:F108,"closé",Q21:Q108, "homme") -> 0 | K6: % Conversion d' Hommes closés / Hommes appelés | N6: =I6/L3 -> 
B7: R2 rdv | C7: =COUNTIFS(O21:O108, "Yes")+COUNTIFS(O21:O108, "No") -> 0 | D7: Follow-up | E7: =COUNTIF(F21:F108, "Follow-up") -> 0 | F7: Réservations : | G7: =C3 -> 0 | H7: Salariés closés | I7: =COUNTIFS(F21:F108,"closé",R21:R108, "Salarié(e)") -> 0 | K7: % Conversion de salariés | N7: =I7/G10 -> 
B8: R2 Réalisés | C8: =COUNTIF(O21:O108, "Yes") -> 0 | D8: Echec | E8: =SUMIF(F21:F108, "echec") -> 0 | F8: Appels : | G8: 0 | H8: Sans-emploi closés | I8: =COUNTIFS(F21:F108,"closé",R21:R108,"Sans emploi") -> 0 | K8: % Conversion sans-emploi | N8: =I8/G10 -> 
B9: No-Shows R1: | C9: =COUNTIFS(E21:E108, "No") -> 0 | D9: Non qualifiés | E9: =SUMIF(F21:F108, "Non qualifié") -> 0 | F9: Follow-up | G9: =E7 -> 0 | H9: Moyenne d'âge | I9: =AVERAGE(P21:P108) -> 
B10: Taux de présence R1: | C10: =C4/C3 ->  | D10: Taux de conversion : | E10: =G10/G8 ->  | F10: Closings : | G10: =COUNTIFS(F21:F124, "Closé") -> 0
B11: Taux de présence R2: | C11: =C8/C7 ->  | D11: Total CA closé : | E11: =E2+E3+E4+E5+E6 -> 0
D12: Moyenne montant CPF | E12: =AVERAGE(K21:K89) -> 
A13: 2024-04-01
A14: Date | B14: NOM prénom | C14: E-Mail | D14: Téléphone | E14: Présent | F14: Etat | G14: CA | H14: Encaissé | I14: X | J14: Offre | K14: CPF Dispo | L14: Montant en CPF | M14: Montant en Cash | N14: Montant encaissé en cash | O14: Origine | P14: Présent R2 | Q14: Age | R14: Sexe | S14: Statut | T14: Fonction | U14: Remarques | V14: Raison Refus | W14: Offre copies 3/6
A15: Début liste des reports d'acompte
A16: test JPP | B16: xx8 | C16: y@gmail.com | D16: 62511455 | E16: Yes | F16: Done | G16: 2500 | H16: =IF(F16="Closé",IF(J16="CASH divisé X3",750,IF(J16="CASH divisé X6",416.16,IF(J16="CASH X1",2000,IF(OR(J16="CPF",J16= "CPF + CASH",J16= "OPCO",J16= "AGEFIPH"),G16,"")))),"") ->  | I16: 6 | J16: CASH divisé X6 | L16: =IF(F16="Closé",K16,"") ->  | M16: =IF(AND(F16="CLosé",OR(J16="CPF",J16="CPF + CASH",J16="OPCO",J16="AGEFIPH")),G16-K16,"") ->  | N16: =IF(AND(F16="CLosé",OR(J16="CPF",J16="CPF + CASH",J16="OPCO",J16="AGEFIPH")),G16,"") ->  | O16: Webi | P16: Yes | R16: Femme | W16: Oui
A18: Début liste des écritures courantes du mois
W19: Non
W20: Non
W21: Non
W22: Non
W23: Non
W24: Non
W25: Non
W26: Non
W27: Non
W28: Non
W29: Non
W30: Non
W31: Non
W32: Non
W33: Non
W34: Non
W35: Non
W36: Non
W37: Non
W38: Non
W39: Non
W40: Non
W41: Non
W42: Non
W43: Non
W44: Non
W45: Non
W46: Non
W47: Non
W48: Non
W49: Non
W50: Non
W51: Non
W52: Non
W53: Non
W54: Non
W55: Non
W56: Non
W57: Non
W58: Non
W59: Non
W60: Non
W61: Non
W62: Non
W63: Non
W64: Non
W65: Non
W66: Non
W67: Non
W68: Non
W69: Non
W70: Non
W71: Non
W72: Non
W73: Non
W74: Non
W75: Non
W76: Non
W77: Non
W78: Non
W79: Non
W80: Non
W81: Non
W82: Non
W83: Non
W84: Non
W85: Non
W86: Non
W87: Non
W88: Non
W89: Non
W90: Non
W91: Non
W92: Non
W93: Non
W94: Non
W95: Non
W96: Non
W97: Non
W98: Non
W99: Non
W100: Non
W101: Non
W102: Non
W103: Non
W104: Non
W105: Non
W106: Non

Sheet Mai 24
F1: Gross Totals
B2: Cold Traffic | D2: Paiement CPF: | E2: =SUMIF(I16:I103,"CPF",H16:H97) -> 0 | F2: CA global : | G2: =SUM(G16:G248) -> 0
B3: Rdv bookés | C3: =COUNTIF(E16:E103, "Yes")+COUNTIF(E16:E103, "No") -> 0 | D3: Paiement CPF + Cash | E3: =SUMIF(I16:I103,"CPF",H16:H97) -> 0 | F3: Encaissé global : | G3: =SUM(H16:H248) -> 0 | K3: Hommes | L3: =COUNTIFS(Q19:Q103, "homme") -> 0
B4: Rdv réalisés | C4: =COUNTIF(E16:E103, "Yes") -> 0 | D4: Paiement 1X cash: | E4: =SUMIF(I16:I103,"CASH 1 fois",G16:G103) -> 0 | F4: CA CPF | G4: =SUM(K16:K103) -> 0 | K4: Femme | L4: =COUNTIFS(Q19:Q103, "femme") -> 0
B5: Rdv replannifiés | C5: =COUNTIF(E16:E103, "Replannifié") -> 0 | D5: Paiement divisé Cash | E5: =SUMIF(I16:I103,"CASH divisé") -> 0 | F5: CA Cash | G5: =SUM(L16:L103) -> 0 | H5: Femmes closées | I5: =COUNTIFS(F16:F103,"closé",Q16:Q103, "femme") -> 0 | K5: % Conversion de Femmes closées /Femmes appelées | N5: =I5/L4 -> 
B6: Rdv annulés | C6: =COUNTIFS(F16:F103,"rdv annulé") -> 0 | D6: Opco | E6: =SUMIF(I16:I103,"OPCO") -> 0 | F6: Encaissé Cash | G6: =SUM(M16:M129) -> 0 | H6: Hommes closés | I6: =COUNTIFS(F16:F103,"closé",Q16:Q103, "homme") -> 0 | K6: % Conversion d' Hommes closés / Hommes appelés | N6: =I6/L3 -> 
B7: R2 rdv | C7: =COUNTIFS(O16:O103, "Yes")+COUNTIFS(O16:O103, "No") -> 0 | D7: Follow-up | E7: =COUNTIF(F16:F103, "Follow-up") -> 0 | F7: Réservations : | G7: =C3 -> 0 | H7: Salariés closés | I7: =COUNTIFS(F16:F103,"closé",R16:R103, "Salarié(e)") -> 0 | K7: % Conversion de salariés | N7: =I7/G10 -> 
B8: R2 Réalisés | C8: =COUNTIF(O16:O103, "Yes") -> 0 | D8: Echec | E8: =SUMIF(F16:F103, "echec") -> 0 | F8: Appels : | G8: 0 | H8: Sans-emploi closés | I8: =COUNTIFS(F16:F103,"closé",R16:R103,"Sans emploi") -> 0 | K8: % Conversion sans-emploi | N8: =I8/G10 -> 
B9: No-Shows R1: | C9: =COUNTIFS(E16:E103, "No") -> 0 | D9: Non qualifiés | E9: =SUMIF(F16:F103, "Non qualifié") -> 0 | F9: Follow-up | G9: =E7 -> 0 | H9: Moyenne d'âge | I9: =AVERAGE(P16:P103) -> 
B10: Taux de présence R1: | C10: =C4/C3 ->  | D10: Taux de conversion : | E10: =G10/G8 ->  | F10: Closings : | G10: =COUNTIFS(F16:F119, "Closé") -> 0
B11: Taux de présence R2: | C11: =C8/C7 ->  | D11: Total CA closé : | E11: =E2+E3+E4+E5+E6 -> 0
D12: Moyenne montant CPF | E12: =AVERAGE(K16:K84) -> 
A13: 2024-05-01
A14: Date | B14: NOM prénom | C14: E-Mail | D14: Téléphone | E14: Présent | F14: Etat | G14: CA | H14: Encaissé | I14: X | J14: Offre | K14: CPF Dispo | L14: Montant en CPF | M14: Montant en Cash | N14: Montant encaissé en cash | O14: Origine | P14: Présent R2 | Q14: Age | R14: Sexe | S14: Statut | T14: Fonction | U14: Remarques | V14: Raison Refus | W14: Offre copies 3/6
A15: Début liste des reports d'acompte
W16: Non
A17: Début liste des écritures courantes du mois | W17: Non
W18: Non
W19: Non
W20: Non
W21: Non
W22: Non
W23: Non
W24: Non
W25: Non
W26: Non
W27: Non
W28: Non
W29: Non
W30: Non
W31: Non
W32: Non
W33: Non
W34: Non
W35: Non
W36: Non
W37: Non
W38: Non
W39: Non
W40: Non
W41: Non
W42: Non
W43: Non
W44: Non
W45: Non
W46: Non
W47: Non
W48: Non
W49: Non
W50: Non
W51: Non
W52: Non
W53: Non
W54: Non
W55: Non
W56: Non
W57: Non
W58: Non
W59: Non
W60: Non
W61: Non
W62: Non
W63: Non
W64: Non
W65: Non
W66: Non
W67: Non
W68: Non
W69: Non
W70: Non
W71: Non
W72: Non
W73: Non
W74: Non
W75: Non
W76: Non
W77: Non
W78: Non
W79: Non
W80: Non
W81: Non
W82: Non
W83: Non
W84: Non
W85: Non
W86: Non
W87: Non
W88: Non
W89: Non
W90: Non
W91: Non
W92: Non
W93: Non
W94: Non
W95: Non
W96: Non
W97: Non
W98: Non
W99: Non
W100: Non
W101: Non
W102: Non
W103: Non
W104: Non

Sheet Juin 24
F1: Gross Totals
B2: Cold Traffic | D2: Paiement CPF: | E2: =SUMIF(I16:I103,"CPF",H16:H97) -> 0 | F2: CA global : | G2: =SUM(G16:G248) -> 0
B3: Rdv bookés | C3: =COUNTIF(E16:E103, "Yes")+COUNTIF(E16:E103, "No") -> 0 | D3: Paiement CPF + Cash | E3: =SUMIF(I16:I103,"CPF",H16:H97) -> 0 | F3: Encaissé global : | G3: =SUM(H16:H248) -> 0 | K3: Hommes | L3: =COUNTIFS(Q19:Q103, "homme") -> 0
B4: Rdv réalisés | C4: =COUNTIF(E16:E103, "Yes") -> 0 | D4: Paiement 1X cash: | E4: =SUMIF(I16:I103,"CASH 1 fois",G16:G103) -> 0 | F4: CA CPF | G4: =SUM(K16:K103) -> 0 | K4: Femme | L4: =COUNTIFS(Q19:Q103, "femme") -> 0
B5: Rdv replannifiés | C5: =COUNTIF(E16:E103, "Replannifié") -> 0 | D5: Paiement divisé Cash | E5: =SUMIF(I16:I103,"CASH divisé") -> 0 | F5: CA Cash | G5: =SUM(L16:L103) -> 0 | H5: Femmes closées | I5: =COUNTIFS(F16:F103,"closé",Q16:Q103, "femme") -> 0 | K5: % Conversion de Femmes closées /Femmes appelées | N5: =I5/L4 -> 
B6: Rdv annulés | C6: =COUNTIFS(F16:F103,"rdv annulé") -> 0 | D6: Opco | E6: =SUMIF(I16:I103,"OPCO") -> 0 | F6: Encaissé Cash | G6: =SUM(M16:M129) -> 0 | H6: Hommes closés | I6: =COUNTIFS(F16:F103,"closé",Q16:Q103, "homme") -> 0 | K6: % Conversion d' Hommes closés / Hommes appelés | N6: =I6/L3 -> 
B7: R2 rdv | C7: =COUNTIFS(O16:O103, "Yes")+COUNTIFS(O16:O103, "No") -> 0 | D7: Follow-up | E7: =COUNTIF(F16:F103, "Follow-up") -> 0 | F7: Réservations : | G7: =C3 -> 0 | H7: Salariés closés | I7: =COUNTIFS(F16:F103,"closé",R16:R103, "Salarié(e)") -> 0 | K7: % Conversion de salariés | N7: =I7/G10 -> 
B8: R2 Réalisés | C8: =COUNTIF(O16:O103, "Yes") -> 0 | D8: Echec | E8: =SUMIF(F16:F103, "echec") -> 0 | F8: Appels : | G8: 0 | H8: Sans-emploi closés | I8: =COUNTIFS(F16:F103,"closé",R16:R103,"Sans emploi") -> 0 | K8: % Conversion sans-emploi | N8: =I8/G10 -> 
B9: No-Shows R1: | C9: =COUNTIFS(E16:E103, "No") -> 0 | D9: Non qualifiés | E9: =SUMIF(F16:F103, "Non qualifié") -> 0 | F9: Follow-up | G9: =E7 -> 0 | H9: Moyenne d'âge | I9: =AVERAGE(P16:P103) -> 
B10: Taux de présence R1: | C10: =C4/C3 ->  | D10: Taux de conversion : | E10: =G10/G8 ->  | F10: Closings : | G10: =COUNTIFS(F16:F119, "Closé") -> 0
B11: Taux de présence R2: | C11: =C8/C7 ->  | D11: Total CA closé : | E11: =E2+E3+E4+E5+E6 -> 0
D12: Moyenne montant CPF | E12: =AVERAGE(K16:K84) -> 
A13: 2024-06-01
A14: Date | B14: NOM prénom | C14: E-Mail | D14: Téléphone | E14: Présent | F14: Etat | G14: CA | H14: Encaissé | I14: X | J14: Offre | K14: CPF Dispo | L14: Montant en CPF | M14: Montant en Cash | N14: Montant encaissé en cash | O14: Origine | P14: Présent R2 | Q14: Age | R14: Sexe | S14: Statut | T14: Fonction | U14: Remarques | V14: Raison Refus | W14: Offre copies 3/6
A15: Début liste des reports d'acompte
W16: Non
A17: Début liste des écritures courantes du mois | W17: Non
W18: Non
W19: Non
W20: Non
W21: Non
W22: Non
W23: Non
W24: Non
W25: Non
W26: Non
W27: Non
W28: Non
W29: Non
W30: Non
W31: Non
W32: Non
W33: Non
W34: Non
W35: Non
W36: Non
W37: Non
W38: Non
W39: Non
W40: Non
W41: Non
W42: Non
W43: Non
W44: Non
W45: Non
W46: Non
W47: Non
W48: Non
W49: Non
W50: Non
W51: Non
W52: Non
W53: Non
W54: Non
W55: Non
W56: Non
W57: Non
W58: Non
W59: Non
W60: Non
W61: Non
W62: Non
W63: Non
W64: Non
W65: Non
W66: Non
W67: Non
W68: Non
W69: Non
W70: Non
W71: Non
W72: Non
W73: Non
W74: Non
W75: Non
W76: Non
W77: Non
W78: Non
W79: Non
W80: Non
W81: Non
W82: Non
W83: Non
W84: Non
W85: Non
W86: Non
W87: Non
W88: Non
W89: Non
W90: Non
W91: Non
W92: Non
W93: Non
W94: Non
W95: Non
W96: Non
W97: Non
W98: Non
W99: Non
W100: Non
W101: Non
W102: Non
W103: Non
W104: Non

Sheet Juil 24
F1: Gross Totals
B2: Cold Traffic | D2: Paiement CPF: | E2: =SUMIF(I16:I103,"CPF",H16:H97) -> 0 | F2: CA global : | G2: =SUM(G16:G248) -> 0
B3: Rdv bookés | C3: =COUNTIF(E16:E103, "Yes")+COUNTIF(E16:E103, "No") -> 0 | D3: Paiement CPF + Cash | E3: =SUMIF(I16:I103,"CPF",H16:H97) -> 0 | F3: Encaissé global : | G3: =SUM(H16:H248) -> 0 | K3: Hommes | L3: =COUNTIFS(Q19:Q103, "homme") -> 0
B4: Rdv réalisés | C4: =COUNTIF(E16:E103, "Yes") -> 0 | D4: Paiement 1X cash: | E4: =SUMIF(I16:I103,"CASH 1 fois",G16:G103) -> 0 | F4: CA CPF | G4: =SUM(K16:K103) -> 0 | K4: Femme | L4: =COUNTIFS(Q19:Q103, "femme") -> 0
B5: Rdv replannifiés | C5: =COUNTIF(E16:E103, "Replannifié") -> 0 | D5: Paiement divisé Cash | E5: =SUMIF(I16:I103,"CASH divisé") -> 0 | F5: CA Cash | G5: =SUM(L16:L103) -> 0 | H5: Femmes closées | I5: =COUNTIFS(F16:F103,"closé",Q16:Q103, "femme") -> 0 | K5: % Conversion de Femmes closées /Femmes appelées | N5: =I5/L4 -> 
B6: Rdv annulés | C6: =COUNTIFS(F16:F103,"rdv annulé") -> 0 | D6: Opco | E6: =SUMIF(I16:I103,"OPCO") -> 0 | F6: Encaissé Cash | G6: =SUM(M16:M129) -> 0 | H6: Hommes closés | I6: =COUNTIFS(F16:F103,"closé",Q16:Q103, "homme") -> 0 | K6: % Conversion d' Hommes closés / Hommes appelés | N6: =I6/L3 -> 
B7: R2 rdv | C7: =COUNTIFS(O16:O103, "Yes")+COUNTIFS(O16:O103, "No") -> 0 | D7: Follow-up | E7: =COUNTIF(F16:F103, "Follow-up") -> 0 | F7: Réservations : | G7: =C3 -> 0 | H7: Salariés closés | I7: =COUNTIFS(F16:F103,"closé",R16:R103, "Salarié(e)") -> 0 | K7: % Conversion de salariés | N7: =I7/G10 -> 
B8: R2 Réalisés | C8: =COUNTIF(O16:O103, "Yes") -> 0 | D8: Echec | E8: =SUMIF(F16:F103, "echec") -> 0 | F8: Appels : | G8: 0 | H8: Sans-emploi closés | I8: =COUNTIFS(F16:F103,"closé",R16:R103,"Sans emploi") -> 0 | K8: % Conversion sans-emploi | N8: =I8/G10 -> 
B9: No-Shows R1: | C9: =COUNTIFS(E16:E103, "No") -> 0 | D9: Non qualifiés | E9: =SUMIF(F16:F103, "Non qualifié") -> 0 | F9: Follow-up | G9: =E7 -> 0 | H9: Moyenne d'âge | I9: =AVERAGE(P16:P103) -> 
B10: Taux de présence R1: | C10: =C4/C3 ->  | D10: Taux de conversion : | E10: =G10/G8 ->  | F10: Closings : | G10: =COUNTIFS(F16:F119, "Closé") -> 0
B11: Taux de présence R2: | C11: =C8/C7 ->  | D11: Total CA closé : | E11: =E2+E3+E4+E5+E6 -> 0
D12: Moyenne montant CPF | E12: =AVERAGE(K16:K84) -> 
A13: 2024-07-01
A14: Date | B14: NOM prénom | C14: E-Mail | D14: Téléphone | E14: Présent | F14: Etat | G14: CA | H14: Encaissé | I14: X | J14: Offre | K14: CPF Dispo | L14: Montant en CPF | M14: Montant en Cash | N14: Montant encaissé en cash | O14: Origine | P14: Présent R2 | Q14: Age | R14: Sexe | S14: Statut | T14: Fonction | U14: Remarques | V14: Raison Refus | W14: Offre copies 3/6
A15: Début liste des reports d'acompte
W16: Non
A17: Début liste des écritures courantes du mois | W17: Non
W18: Non
W19: Non
W20: Non
W21: Non
W22: Non
W23: Non
W24: Non
W25: Non
W26: Non
W27: Non
W28: Non
W29: Non
W30: Non
W31: Non
W32: Non
W33: Non
W34: Non
W35: Non
W36: Non
W37: Non
W38: Non
W39: Non
W40: Non
W41: Non
W42: Non
W43: Non
W44: Non
W45: Non
W46: Non
W47: Non
W48: Non
W49: Non
W50: Non
W51: Non
W52: Non
W53: Non
W54: Non
W55: Non
W56: Non
W57: Non
W58: Non
W59: Non
W60: Non
W61: Non
W62: Non
W63: Non
W64: Non
W65: Non
W66: Non
W67: Non
W68: Non
W69: Non
W70: Non
W71: Non
W72: Non
W73: Non
W74: Non
W75: Non
W76: Non
W77: Non
W78: Non
W79: Non
W80: Non
W81: Non
W82: Non
W83: Non
W84: Non
W85: Non
W86: Non
W87: Non
W88: Non
W89: Non
W90: Non
W91: Non
W92: Non
W93: Non
W94: Non
W95: Non
W96: Non
W97: Non
W98: Non
W99: Non
W100: Non
W101: Non
W102: Non
W103: Non
W104: Non

Sheet Aout 24
F1: Gross Totals
B2: Cold Traffic | D2: Paiement CPF: | E2: =SUMIF(I16:I103,"CPF",H16:H97) -> 0 | F2: CA global : | G2: =SUM(G16:G248) -> 0
B3: Rdv bookés | C3: =COUNTIF(E16:E103, "Yes")+COUNTIF(E16:E103, "No") -> 0 | D3: Paiement CPF + Cash | E3: =SUMIF(I16:I103,"CPF",H16:H97) -> 0 | F3: Encaissé global : | G3: =SUM(H16:H248) -> 0 | K3: Hommes | L3: =COUNTIFS(Q19:Q103, "homme") -> 0
B4: Rdv réalisés | C4: =COUNTIF(E16:E103, "Yes") -> 0 | D4: Paiement 1X cash: | E4: =SUMIF(I16:I103,"CASH 1 fois",G16:G103) -> 0 | F4: CA CPF | G4: =SUM(K16:K103) -> 0 | K4: Femme | L4: =COUNTIFS(Q19:Q103, "femme") -> 0
B5: Rdv replannifiés | C5: =COUNTIF(E16:E103, "Replannifié") -> 0 | D5: Paiement divisé Cash | E5: =SUMIF(I16:I103,"CASH divisé") -> 0 | F5: CA Cash | G5: =SUM(L16:L103) -> 0 | H5: Femmes closées | I5: =COUNTIFS(F16:F103,"closé",Q16:Q103, "femme") -> 0 | K5: % Conversion de Femmes closées /Femmes appelées | N5: =I5/L4 -> 
B6: Rdv annulés | C6: =COUNTIFS(F16:F103,"rdv annulé") -> 0 | D6: Opco | E6: =SUMIF(I16:I103,"OPCO") -> 0 | F6: Encaissé Cash | G6: =SUM(M16:M129) -> 0 | H6: Hommes closés | I6: =COUNTIFS(F16:F103,"closé",Q16:Q103, "homme") -> 0 | K6: % Conversion d' Hommes closés / Hommes appelés | N6: =I6/L3 -> 
B7: R2 rdv | C7: =COUNTIFS(O16:O103, "Yes")+COUNTIFS(O16:O103, "No") -> 0 | D7: Follow-up | E7: =COUNTIF(F16:F103, "Follow-up") -> 0 | F7: Réservations : | G7: =C3 -> 0 | H7: Salariés closés | I7: =COUNTIFS(F16:F103,"closé",R16:R103, "Salarié(e)") -> 0 | K7: % Conversion de salariés | N7: =I7/G10 -> 
B8: R2 Réalisés | C8: =COUNTIF(O16:O103, "Yes") -> 0 | D8: Echec | E8: =SUMIF(F16:F103, "echec") -> 0 | F8: Appels : | G8: 0 | H8: Sans-emploi closés | I8: =COUNTIFS(F16:F103,"closé",R16:R103,"Sans emploi") -> 0 | K8: % Conversion sans-emploi | N8: =I8/G10 -> 
B9: No-Shows R1: | C9: =COUNTIFS(E16:E103, "No") -> 0 | D9: Non qualifiés | E9: =SUMIF(F16:F103, "Non qualifié") -> 0 | F9: Follow-up | G9: =E7 -> 0 | H9: Moyenne d'âge | I9: =AVERAGE(P16:P103) -> 
B10: Taux de présence R1: | C10: =C4/C3 ->  | D10: Taux de conversion : | E10: =G10/G8 ->  | F10: Closings : | G10: =COUNTIFS(F16:F119, "Closé") -> 0
B11: Taux de présence R2: | C11: =C8/C7 ->  | D11: Total CA closé : | E11: =E2+E3+E4+E5+E6 -> 0
D12: Moyenne montant CPF | E12: =AVERAGE(K16:K84) -> 
A13: 2024-08-01
A14: Date | B14: NOM prénom | C14: E-Mail | D14: Téléphone | E14: Présent | F14: Etat | G14: CA | H14: Encaissé | I14: X | J14: Offre | K14: CPF Dispo | L14: Montant en CPF | M14: Montant en Cash | N14: Montant encaissé en cash | O14: Origine | P14: Présent R2 | Q14: Age | R14: Sexe | S14: Statut | T14: Fonction | U14: Remarques | V14: Raison Refus | W14: Offre copies 3/6
A15: Début liste des reports d'acompte
W16: Non
A17: Début liste des écritures courantes du mois | W17: Non
W18: Non
W19: Non
W20: Non
W21: Non
W22: Non
W23: Non
W24: Non
W25: Non
W26: Non
W27: Non
W28: Non
W29: Non
C30: =e ->  | W30: Non
W31: Non
W32: Non
W33: Non
W34: Non
W35: Non
W36: Non
W37: Non
W38: Non
W39: Non
W40: Non
W41: Non
W42: Non
W43: Non
W44: Non
W45: Non
W46: Non
W47: Non
W48: Non
W49: Non
W50: Non
W51: Non
W52: Non
W53: Non
W54: Non
W55: Non
W56: Non
W57: Non
W58: Non
W59: Non
W60: Non
W61: Non
W62: Non
W63: Non
W64: Non
W65: Non
W66: Non
W67: Non
W68: Non
W69: Non
W70: Non
W71: Non
W72: Non
W73: Non
W74: Non
W75: Non
W76: Non
W77: Non
W78: Non
W79: Non
W80: Non
W81: Non
W82: Non
W83: Non
W84: Non
W85: Non
W86: Non
W87: Non
W88: Non
W89: Non
W90: Non
W91: Non
W92: Non
W93: Non
W94: Non
W95: Non
W96: Non
W97: Non
W98: Non
W99: Non
W100: Non
W101: Non
W102: Non
W103: Non
W104: Non

Sheet Sept 24
F1: Gross Totals
B2: Cold Traffic | D2: Paiement CPF: | E2: =SUMIF(I16:I103,"CPF",H16:H97) -> 0 | F2: CA global : | G2: =SUM(G16:G248) -> 0
B3: Rdv bookés | C3: =COUNTIF(E16:E103, "Yes")+COUNTIF(E16:E103, "No") -> 0 | D3: Paiement CPF + Cash | E3: =SUMIF(I16:I103,"CPF",H16:H97) -> 0 | F3: Encaissé global : | G3: =SUM(H16:H248) -> 0 | K3: Hommes | L3: =COUNTIFS(Q19:Q103, "homme") -> 0
B4: Rdv réalisés | C4: =COUNTIF(E16:E103, "Yes") -> 0 | D4: Paiement 1X cash: | E4: =SUMIF(I16:I103,"CASH 1 fois",G16:G103) -> 0 | F4: CA CPF | G4: =SUM(K16:K103) -> 0 | K4: Femme | L4: =COUNTIFS(Q19:Q103, "femme") -> 0
B5: Rdv replannifiés | C5: =COUNTIF(E16:E103, "Replannifié") -> 0 | D5: Paiement divisé Cash | E5: =SUMIF(I16:I103,"CASH divisé") -> 0 | F5: CA Cash | G5: =SUM(L16:L103) -> 0 | H5: Femmes closées | I5: =COUNTIFS(F16:F103,"closé",Q16:Q103, "femme") -> 0 | K5: % Conversion de Femmes closées /Femmes appelées | N5: =I5/L4 -> 
B6: Rdv annulés | C6: =COUNTIFS(F16:F103,"rdv annulé") -> 0 | D6: Opco | E6: =SUMIF(I16:I103,"OPCO") -> 0 | F6: Encaissé Cash | G6: =SUM(M16:M129) -> 0 | H6: Hommes closés | I6: =COUNTIFS(F16:F103,"closé",Q16:Q103, "homme") -> 0 | K6: % Conversion d' Hommes closés / Hommes appelés | N6: =I6/L3 -> 
B7: R2 rdv | C7: =COUNTIFS(O16:O103, "Yes")+COUNTIFS(O16:O103, "No") -> 0 | D7: Follow-up | E7: =COUNTIF(F16:F103, "Follow-up") -> 0 | F7: Réservations : | G7: =C3 -> 0 | H7: Salariés closés | I7: =COUNTIFS(F16:F103,"closé",R16:R103, "Salarié(e)") -> 0 | K7: % Conversion de salariés | N7: =I7/G10 -> 
B8: R2 Réalisés | C8: =COUNTIF(O16:O103, "Yes") -> 0 | D8: Echec | E8: =SUMIF(F16:F103, "echec") -> 0 | F8: Appels : | G8: 0 | H8: Sans-emploi closés | I8: =COUNTIFS(F16:F103,"closé",R16:R103,"Sans emploi") -> 0 | K8: % Conversion sans-emploi | N8: =I8/G10 -> 
B9: No-Shows R1: | C9: =COUNTIFS(E16:E103, "No") -> 0 | D9: Non qualifiés | E9: =SUMIF(F16:F103, "Non qualifié") -> 0 | F9: Follow-up | G9: =E7 -> 0 | H9: Moyenne d'âge | I9: =AVERAGE(P16:P103) -> 
B10: Taux de présence R1: | C10: =C4/C3 ->  | D10: Taux de conversion : | E10: =G10/G8 ->  | F10: Closings : | G10: =COUNTIFS(F16:F119, "Closé") -> 0
B11: Taux de présence R2: | C11: =C8/C7 ->  | D11: Total CA closé : | E11: =E2+E3+E4+E5+E6 -> 0
D12: Moyenne montant CPF | E12: =AVERAGE(K16:K84) -> 
A13: 2024-09-01
A14: Date | B14: NOM prénom | C14: E-Mail | D14: Téléphone | E14: Présent | F14: Etat | G14: CA | H14: Encaissé | I14: X | J14: Offre | K14: CPF Dispo | L14: Montant en CPF | M14: Montant en Cash | N14: Montant encaissé en cash | O14: Origine | P14: Présent R2 | Q14: Age | R14: Sexe | S14: Statut | T14: Fonction | U14: Remarques | V14: Raison Refus | W14: Offre copies 3/6
A15: Début liste des reports d'acompte
W16: Non
A17: Début liste des écritures courantes du mois | W17: Non
W18: Non
W19: Non
W20: Non
W21: Non
W22: Non
W23: Non
W24: Non
W25: Non
W26: Non
W27: Non
W28: Non
W29: Non
W30: Non
W31: Non
W32: Non
W33: Non
W34: Non
W35: Non
W36: Non
W37: Non
W38: Non
W39: Non
W40: Non
W41: Non
W42: Non
W43: Non
W44: Non
W45: Non
W46: Non
W47: Non
W48: Non
W49: Non
W50: Non
W51: Non
W52: Non
W53: Non
W54: Non
W55: Non
W56: Non
W57: Non
W58: Non
W59: Non
W60: Non
W61: Non
W62: Non
W63: Non
W64: Non
W65: Non
W66: Non
W67: Non
W68: Non
W69: Non
W70: Non
W71: Non
W72: Non
W73: Non
W74: Non
W75: Non
W76: Non
W77: Non
W78: Non
W79: Non
W80: Non
W81: Non
W82: Non
W83: Non
W84: Non
W85: Non
W86: Non
W87: Non
W88: Non
W89: Non
W90: Non
W91: Non
W92: Non
W93: Non
W94: Non
W95: Non
W96: Non
W97: Non
W98: Non
W99: Non
W100: Non
W101: Non
W102: Non
W103: Non
W104: Non

Sheet Oct 24
F1: Gross Totals
B2: Cold Traffic | D2: Paiement CPF: | E2: =SUMIF(I17:I104,"CPF",H17:H98) -> 0 | F2: CA global : | G2: =SUM(G17:G249) -> 0
B3: Rdv bookés | C3: =COUNTIF(E17:E104, "Yes")+COUNTIF(E17:E104, "No") -> 0 | D3: Paiement CPF + Cash | E3: =SUMIF(I17:I104,"CPF",H17:H98) -> 0 | F3: Encaissé global : | G3: =SUM(H17:H249) -> 0 | K3: Hommes | L3: =COUNTIFS(Q20:Q104, "homme") -> 0
B4: Rdv réalisés | C4: =COUNTIF(E17:E104, "Yes") -> 0 | D4: Paiement 1X cash: | E4: =SUMIF(I17:I104,"CASH 1 fois",G17:G104) -> 0 | F4: CA CPF | G4: =SUM(K17:K104) -> 0 | K4: Femme | L4: =COUNTIFS(Q20:Q104, "femme") -> 0
B5: Rdv replannifiés | C5: =COUNTIF(E17:E104, "Replannifié") -> 0 | D5: Paiement divisé Cash | E5: =SUMIF(I17:I104,"CASH divisé") -> 0 | F5: CA Cash | G5: =SUM(L17:L104) -> 0 | H5: Femmes closées | I5: =COUNTIFS(F17:F104,"closé",Q17:Q104, "femme") -> 0 | K5: % Conversion de Femmes closées /Femmes appelées | N5: =I5/L4 -> 
B6: Rdv annulés | C6: =COUNTIFS(F17:F104,"rdv annulé") -> 0 | D6: Opco | E6: =SUMIF(I17:I104,"OPCO") -> 0 | F6: Encaissé Cash | G6: =SUM(M17:M130) -> 0 | H6: Hommes closés | I6: =COUNTIFS(F17:F104,"closé",Q17:Q104, "homme") -> 0 | K6: % Conversion d' Hommes closés / Hommes appelés | N6: =I6/L3 -> 
B7: R2 rdv | C7: =COUNTIFS(O17:O104, "Yes")+COUNTIFS(O17:O104, "No") -> 0 | D7: Follow-up | E7: =COUNTIF(F17:F104, "Follow-up") -> 0 | F7: Réservations : | G7: =C3 -> 0 | H7: Salariés closés | I7: =COUNTIFS(F17:F104,"closé",R17:R104, "Salarié(e)") -> 0 | K7: % Conversion de salariés | N7: =I7/G10 -> 
B8: R2 Réalisés | C8: =COUNTIF(O17:O104, "Yes") -> 0 | D8: Echec | E8: =SUMIF(F17:F104, "echec") -> 0 | F8: Appels : | G8: 0 | H8: Sans-emploi closés | I8: =COUNTIFS(F17:F104,"closé",R17:R104,"Sans emploi") -> 0 | K8: % Conversion sans-emploi | N8: =I8/G10 -> 
B9: No-Shows R1: | C9: =COUNTIFS(E17:E104, "No") -> 0 | D9: Non qualifiés | E9: =SUMIF(F17:F104, "Non qualifié") -> 0 | F9: Follow-up | G9: =E7 -> 0 | H9: Moyenne d'âge | I9: =AVERAGE(P17:P104) -> 
B10: Taux de présence R1: | C10: =C4/C3 ->  | D10: Taux de conversion : | E10: =G10/G8 ->  | F10: Closings : | G10: =COUNTIFS(F17:F120, "Closé") -> 0
B11: Taux de présence R2: | C11: =C8/C7 ->  | D11: Total CA closé : | E11: =E2+E3+E4+E5+E6 -> 0
D12: Moyenne montant CPF | E12: =AVERAGE(K17:K85) -> 
A13: 2024-10-01
A14: Date | B14: NOM prénom | C14: E-Mail | D14: Téléphone | E14: Présent | F14: Etat | G14: CA | H14: Encaissé | I14: X | J14: Offre | K14: CPF Dispo | L14: Montant en CPF | M14: Montant en Cash | N14: Montant encaissé en cash | O14: Origine | P14: Présent R2 | Q14: Age | R14: Sexe | S14: Statut | T14: Fonction | U14: Remarques | V14: Raison Refus | W14: Offre copies 3/6
A15: Début liste des reports d'acompte
A17: Début liste des écritures courantes du mois | W17: Non
W18: Non
W19: Non
W20: Non
W21: Non
W22: Non
W23: Non
W24: Non
W25: Non
W26: Non
W27: Non
W28: Non
W29: Non
W30: Non
W31: Non
W32: Non
W33: Non
W34: Non
W35: Non
W36: Non
W37: Non
W38: Non
W39: Non
W40: Non
W41: Non
W42: Non
W43: Non
W44: Non
W45: Non
W46: Non
W47: Non
W48: Non
W49: Non
W50: Non
W51: Non
W52: Non
W53: Non
W54: Non
W55: Non
W56: Non
W57: Non
W58: Non
W59: Non
W60: Non
W61: Non
W62: Non
W63: Non
W64: Non
W65: Non
W66: Non
W67: Non
W68: Non
W69: Non
W70: Non
W71: Non
W72: Non
W73: Non
W74: Non
W75: Non
W76: Non
W77: Non
W78: Non
W79: Non
W80: Non
W81: Non
W82: Non
W83: Non
W84: Non
W85: Non
W86: Non
W87: Non
W88: Non
W89: Non
W90: Non
W91: Non
W92: Non
W93: Non
W94: Non
W95: Non
W96: Non
W97: Non
W98: Non
W99: Non
W100: Non
W101: Non
W102: Non
W103: Non
W104: Non
W105: Non

Sheet Global 2024
B3: Cold Traffic | D3: Paiement CPF: | E3: ='Jan 24'!E2+'Fev 24'!E2+'Mars 24'!E2+'Avril 24'!E2+'Mai 24'!E2+'Juin 24'!E2+'Juil 24'!E2+'Aout 24'!E2+'Sept 24'!E2+'Oct 24'!E2 -> 0 | F3: CA global : | G3: ='Jan 24'!G2+'Fev 24'!G2+'Mars 24'!G2+'Avril 24'!G2+'Mai 24'!G2+'Juin 24'!G2+'Juil 24'!G2+'Aout 24'!G2+'Sept 24'!G2+'Oct 24'!G2 -> 12000
B4: Rdv bookés | C4: ='Jan 24'!C3+'Fev 24'!C3+'Mars 24'!C3+'Avril 24'!C3+'Mai 24'!C3+'Juin 24'!C3+'Juil 24'!C3+'Aout 24'!C3+'Sept 24'!C3+'Oct 24'!C3 -> 28 | D4: Paiement CPF + Cash | E4: ='Jan 24'!E3+'Fev 24'!E3+'Mars 24'!E3+'Avril 24'!E3+'Mai 24'!E3+'Juin 24'!E3+'Juil 24'!E3+'Aout 24'!E3+'Sept 24'!E3+'Oct 24'!E3 -> 0 | F4: Encaissé global : | G4: ='Jan 24'!G3+'Fev 24'!G3+'Mars 24'!G3+'Avril 24'!G3+'Mai 24'!G3+'Juin 24'!G3+'Juil 24'!G3+'Aout 24'!G3+'Sept 24'!G3+'Oct 24'!G3 -> 9916.66
B5: Rdv réalisés | C5: ='Jan 24'!C4+'Fev 24'!C4++'Mars 24'!C4+'Avril 24'!C4+'Mai 24'!C4+'Juin 24'!C4+'Juil 24'!C4+'Aout 24'!C4+'Sept 24'!C4+'Oct 24'!C4 -> 19 | D5: Paiement 1X cash: | E5: ='Jan 24'!E4+'Fev 24'!E4+'Mars 24'!E4+'Avril 24'!E4+'Mai 24'!E4+'Juin 24'!E4+'Juil 24'!E4+'Aout 24'!E4+'Sept 24'!E4+'Oct 24'!E4 -> 0 | F5: CA CPF | G5: ='Jan 24'!G4+'Fev 24'!G4+'Mars 24'!G4+'Avril 24'!G4+'Mai 24'!G4+'Juin 24'!G4+'Juil 24'!G4+'Aout 24'!G4+'Sept 24'!G4+'Oct 24'!G4 -> 11537
B6: Rdv replannifiés | C6: ='Jan 24'!C5+'Fev 24'!C5+'Mars 24'!C5+'Avril 24'!C5+'Mai 24'!C5+'Juin 24'!C5+'Juil 24'!C5+'Aout 24'!C5+'Sept 24'!C5+'Oct 24'!C5 -> 0 | D6: Paiement divisé Cash | E6: ='Jan 24'!E5+'Fev 24'!E5+'Mars 24'!E5+'Avril 24'!E5+'Mai 24'!E5+'Juin 24'!E5+'Juil 24'!E5+'Aout 24'!E5+'Sept 24'!E5+'Oct 24'!E5 -> 0 | F6: CA Cash | G6: ='Jan 24'!G5+'Fev 24'!G5+'Mars 24'!G5+'Avril 24'!G5+'Mai 24'!G5+'Juin 24'!G5+'Juil 24'!G5+'Aout 24'!G5+'Sept 24'!G5+'Oct 24'!G5 -> 3837 | H6: Femmes closées | I6: ='Jan 24'!I5+'Fev 24'!I5+'Mars 24'!I5+'Avril 24'!I5+'Mai 24'!I5+'Juin 24'!I5+'Juil 24'!I5+'Aout 24'!I5+'Sept 24'!I5+'Oct 24'!I5 -> 0 | K6: % Conversion de Femmes | L6: =I6/G11 -> 0
B7: Rdv annulés | C7: ='Jan 24'!C6+'Fev 24'!C6+'Mars 24'!C6+'Avril 24'!C6+'Mai 24'!C6+'Juin 24'!C6+'Juil 24'!C6+'Aout 24'!C6+'Sept 24'!C6+'Oct 24'!C6 -> 0.07142857143 | D7: Opco | E7: ='Jan 24'!E6+'Fev 24'!E6+'Mars 24'!E6+'Avril 24'!E6+'Mai 24'!E6+'Juin 24'!E6+'Juil 24'!E6+'Aout 24'!E6+'Sept 24'!E6+'Oct 24'!E6 -> 0 | F7: Encaissé Cash | G7: ='Jan 24'!G6+'Fev 24'!G6+'Mars 24'!G6+'Avril 24'!G6+'Mai 24'!G6+'Juin 24'!G6+'Juil 24'!G6+'Aout 24'!G6+'Sept 24'!G6+'Oct 24'!G6 -> 1163 | H7: Hommes closés | I7: ='Jan 24'!I6+'Fev 24'!I6+'Mars 24'!I6+'Avril 24'!I6+'Mai 24'!I6+'Juin 24'!I6+'Juil 24'!I6+'Aout 24'!I6+'Sept 24'!I6+'Oct 24'!I6 -> 0 | K7: % Conversion d' Hommes | L7: =I7/G11 -> 0
B8: R2 rdv | C8: ='Jan 24'!C7+'Fev 24'!C7+'Mars 24'!C7+'Avril 24'!C7+'Mai 24'!C7+'Juin 24'!C7+'Juil 24'!C7+'Aout 24'!C7+'Sept 24'!C7+'Oct 24'!C7 -> 0 | D8: Follow-up | E8: ='Jan 24'!E7+'Fev 24'!E7+'Mars 24'!E7+'Avril 24'!E7+'Mai 24'!E7+'Juin 24'!E7+'Juil 24'!E7+'Aout 24'!E7+'Sept 24'!E7+'Oct 24'!E7 -> 0 | F8: Réservations : | G8: ='Jan 24'!G7+'Fev 24'!G7+'Mars 24'!G7+'Avril 24'!G7+'Mai 24'!G7+'Juin 24'!G7+'Juil 24'!G7+'Aout 24'!G7+'Sept 24'!G7+'Oct 24'!G7 -> 28 | H8: Salariés closés | I8: ='Jan 24'!I7+'Fev 24'!I7+'Mars 24'!I7+'Avril 24'!I7+'Mai 24'!I7+'Juin 24'!I7+'Juil 24'!I7+'Aout 24'!I7+'Sept 24'!I7+'Oct 24'!I7 -> 0 | K8: % Conversion de salariés | L8: =I8/G11 -> 0
B9: R2 Réalisés | C9: ='Jan 24'!C8+'Fev 24'!C8+'Mars 24'!C8+'Avril 24'!C8+'Mai 24'!C8+'Juin 24'!C8+'Juil 24'!C8+'Aout 24'!C8+'Sept 24'!C8+'Oct 24'!C8 -> 0 | D9: Echec | E9: ='Jan 24'!E8+'Fev 24'!E8+'Mars 24'!E8+'Avril 24'!E8+'Mai 24'!E8+'Juin 24'!E8+'Juil 24'!E8+'Aout 24'!E8+'Sept 24'!E8+'Oct 24'!E8 -> 0 | F9: Appels : | G9: ='Jan 24'!G8+'Fev 24'!G8+'Mars 24'!G8+'Avril 24'!G8+'Mai 24'!G8+'Juin 24'!G8+'Juil 24'!G8+'Aout 24'!G8+'Sept 24'!G8+'Oct 24'!G8 -> 19 | H9: Sans-emploi closés | I9: ='Jan 24'!I8+'Fev 24'!I8+'Mars 24'!I8+'Avril 24'!I8+'Mai 24'!I8+'Juin 24'!I8+'Juil 24'!I8+'Aout 24'!I8+'Sept 24'!I8+'Oct 24'!I8 -> 0 | K9: % Conversion sans-emploi | L9: =I9/G11 -> 0
B10: No-Shows : | C10: ='Jan 24'!C9+'Fev 24'!C9+'Mars 24'!C9+'Avril 24'!C9+'Mai 24'!C9+'Juin 24'!C9+'Juil 24'!C9+'Aout 24'!C9+'Sept 24'!C9+'Oct 24'!C9 -> 9 | D10: Non qualifiés | E10: ='Jan 24'!E9+'Fev 24'!E9+'Mars 24'!E9+'Avril 24'!E9+'Mai 24'!E9+'Juin 24'!E9+'Juil 24'!E9+'Aout 24'!E9+'Sept 24'!E9+'Oct 24'!E9 -> 0 | F10: Follow-up | G10: ='Jan 24'!G9+'Fev 24'!G9+'Mars 24'!G9+'Avril 24'!G9+'Mai 24'!G9+'Juin 24'!G9+'Juil 24'!G9+'Aout 24'!G9+'Sept 24'!G9+'Oct 24'!G9 -> 0 | H10: Moyenne d'âge | I10: =AVERAGE('Jan 24'!I9,'Fev 24'!I9,'Mars 24'!I9,'Avril 24'!I9,'Mai 24'!I9,'Juin 24'!I9,'Juil 24'!I9,'Aout 24'!I9,'Sept 24'!I9,'Oct 24'!I9) -> 
B11: Taux de présence R1: | C11: =AVERAGE('Jan 24'!C10,'Fev 24'!C10,'Mars 24'!C10,'Avril 24'!C10,'Mai 24'!C10,'Juin 24'!C10,'Juil 24'!C10,'Aout 24'!C10,'Sept 24'!C10,'Oct 24'!C10) ->  | D11: Taux de conversion : | E11: =AVERAGE('Jan 24'!E10,'Fev 24'!E10,'Mars 24'!E10,'Avril 24'!E10,'Mai 24'!E10,'Juin 24'!E10,'Juil 24'!E10,'Aout 24'!E10,'Sept 24'!E10,'Oct 24'!E10) ->  | F11: Closings : | G11: ='Jan 24'!G10+'Fev 24'!G10+'Mars 24'!G10+'Avril 24'!G10+'Mai 24'!G10+'Juin 24'!G10+'Juil 24'!G10+'Aout 24'!G10+'Sept 24'!G10+'Oct 24'!G10 -> 6
B12: Taux de présence R2: | C12: =C9/C8 ->  | D12: Total CA closé : | E12: ='Jan 24'!E11+'Fev 24'!E11+'Mars 24'!E11+'Avril 24'!E11+'Mai 24'!E11+'Juin 24'!E11+'Juil 24'!E11+'Aout 24'!E11+'Sept 24'!E11+'Oct 24'!E11 -> 0
D13: Moy montant closé CPF | E13: =AVERAGE('Jan 24'!E12,'Fev 24'!E12,'Mars 24'!E12,'Avril 24'!E12,'Mai 24'!E12,'Juin 24'!E12,'Juil 24'!E12,'Aout 24'!E12,'Sept 24'!E12,'Oct 24'!E12) -> 
C17: DEC | F17: Taux de conv mensuel :
C18: JANVIER | D18: ='Jan 24'!E11 -> 0 | F18: DEC
C19: FEVRIER | D19: ='Fev 24'!E11 -> 0 | F19: JANVIER | G19: ='Jan 24'!E10 -> 0.2631578947
C20: MARS | D20: ='Mars 24'!E11 -> 0 | F20: FEVRIER | G20: ='Fev 24'!E10 -> 
C21: AVRIL | D21: ='Avril 24'!E11 -> 0 | F21: MARS | G21: ='Mars 24'!E10 -> 
C22: MAI | D22: ='Mai 24'!E11 -> 0 | F22: AVRIL | G22: ='Avril 24'!E10 -> 
C23: JUIN | D23: ='Juin 24'!E11 -> 0 | F23: MAI | G23: ='Mai 24'!E10 -> 
C24: JUILLET | D24: ='Juil 24'!E11 -> 0 | F24: JUIN | G24: ='Juin 24'!E10 -> 
C25: AOUT | D25: ='Aout 24'!E11 -> 0 | F25: JUILLET | G25: ='Juil 24'!E10 -> 
C26: SEPT | D26: ='Sept 24'!E11 -> 0 | F26: AOUT | G26: ='Aout 24'!E10 -> 
C27: OCT | D27: ='Oct 24'!E11 -> 0 | F27: SEPT | G27: ='Sept 24'!E10 -> 
F28: OCT | G28: ='Oct 24'!E10 -> 
